{"text_format":"1","workbook":"xlsx","n_sheets":18,"sheets":["Start Instructions","Macros","Full Data Template","Local Response Team","LEDO Site Section","Owner Site Section","Electric Section","Water Section","Sewer Section","Natural Gas Section","Fiber Section","Rail Section","Airport Section","Owner LEDO Due Diligence Sect","Fort Union Site","\"EX\" Stand-Alone Site CDA","\"EX\" Ind Park Map CDA","InSite Section Subm Checklist"],"not_rendered":{"charts":0,"images":7,"macros":1,"external_links":24,"defined_names":1184,"comments":0,"pivot_tables":0},"unopened":[],"bounds":{"document_bytes":16777216,"sheet_cells":100000,"rows_first":2000,"rows_last":500,"rows_between":2000,"halvings":0,"cell_chars":16384,"cell_head_chars":4096},"cells_cut":0,"cells_raw":0,"read":"whole","date_system":"1900"}

{"sheet":"Start Instructions","index":0,"n_rows":36,"n_cols":4,"rows_kept":36,"cut":false,"hidden":false,"merged":[[18,3,18,4],[19,3,19,4],[20,3,20,4],[16,3,16,4],[17,3,17,4],[31,3,31,4],[32,3,32,4],[21,3,21,4],[22,3,22,4],[23,3,23,4],[24,3,24,4],[26,3,26,4],[27,3,27,4],[25,3,25,4],[28,3,28,4],[29,3,29,4],[30,3,30,4]]}
[]
[]
[null,null,"INSITE'S SITE AND COMMUNITY CLIENT READINESS PROGRAM"]
[null,null,"InSite's Site Selection Data Template to Compile Site Specs"]
[null,null,"Stand-Alone Site and/or Industrial Park Site(s):  Referenced as \"Site\" in Document"]
[null,null,"LEDO Input Data Template"]
[null,null,"© 2022 InSite LLC: Confidential and Proprietary Property of InSite, LLC. The data template will remain in its original condition (formatting, spelling, etc.) as submitted to InSite."]
[null,null,"Input Name of Stand-Alone Site or Industrial Park Submission","Fort Union Industrial Park"]
[null,null,"Is this Site Submission.....","An Industrial Park Site"]
[null,null,"Largest, contiguous, developable acreage (CDA) of site submission.  \nSee \"EX\" worksheet tabs.",460]
[null,null,"Submission street/physical address","3574 N. Garner Lake Rd"]
[null,null,"city","Gillette"]
[null,null,"county","Campbell"]
[null,null,"state","WY"]
[null,null,"zip code",82716]
[null,null,"GPS Coordinates","44.354032988369234, -105.4208611010569"]
[null,null,"**LEDO MUST DO FIRST**","INPUT THE STAND-ALONE SITE OR INDUSTRIAL PARK NAME, SUBMISSION STREET PHYSICAL ADDRESS, CITY, COUNTY, STATE, ZIP IN THE ABOVE FIRST, BEFORE FORWARDING ANY OTHER TABS. IT WILL POPULATE FOR THE REST OF THE WORKSHEET TABS/DOCUMENT.  This way everyone will have the identical site information."]
[null,null,"Do Not","Leave any input (white) cells blank.  "]
[null,null,"Responses","Such as \"N/A, see attachment, or see above\" are not considered answers."]
[null,null,"**Underlined Text","Is a hyperlink to the example format that must be used for submission."]
[null,null,"Answer","Concisely.  Input answers in white cells.  Only use gray cells for comments."]
[null,null,"Utilize ","All drop-downs where available. Do not manipulate the document."]
[null,null,"Numbers","Are preferable to words. Please use numbers at the template's request."]
[null,null,"When Entering","Numerical values, do not include modifiers such as sq.ft., miles, inches, etc. Use comment column for modifiers."]
[null,null,"Utilities","All cells must be answered.  PARTNER WITH YOUR UTILITY PROVIDERS!"]
[null,null,"**LEDO MUST**","Develop and Provide a Stand-Alone Site or Industrial Park Boundary Base Map for Each Utility Provider to Show Service to the Boundaries for Consistency.  \nUse this base map for all other \"map-related\" requests.\nThen use to develop one map showing all utilities to the site/park boundaries."]
[null,null,"**MUST Use This Format for Saving Each File: Filename Example**","Naming the file is very important:  Use this format guide (abbreviate to IP, BP, etc.):  \nWBC | InSite | Local Community Name | Current Date (change per revision) | Site Name. \nExample:  WBC InSite Greer (03.24.22) Patriot IP."]
[null,null,"Do Not","Manipulate, unlock, unprotect this document.  \nDo not PDF for submission.  Return in exact Excel format."]
[null,null,"Worksheets","Make note that there are multiple worksheet tabs within this document.  \nThese sections are to be sent to the respective local response team member \nfor completion."]
[null,null,"Errors","Please check the spelling of the document before returning and double check for errors. Accuracy and correctness are paramount."]
[null,null,"Email To\nCopy ","Tonya Crist at tcrist@insiteconsultinggroup.com. \nRob Cornwell at rcornwell@insiteconsultinggroup.com."]
[null,null,"Responses Due","See Email Instructions."]
[null,null,"Hard Copies","Are not requested at this time."]
[]
[null,null,"InSite Example Industrial Park Map and CDAs (2023)","See \"EX\" Worksheet Tabs."]
[null,null,"InSite Example Stand-Alone Site CDA Map (2023)\nOne Site","See \"EX\" Worksheet Tabs."]

{"sheet":"Macros","index":1,"n_rows":174,"n_cols":6,"rows_kept":174,"cut":false,"hidden":true,"merged":[]}
[]
[null,"Class I",null,"Yes"]
[null,"Class II",null,"No"]
[null,"Class I and Class II",null,"Not Zoned Industrial"]
[null,"Yes"]
[null,"No",null,"Yes"]
[null,"Partial",null,"No"]
[null,null,null,"Zoned Industrial"]
[null,null,null,null,null,"Submitted"]
[null,null,null,"Yes",null,"Did Not Submit"]
[null,"Yes",null,"No",null,"No Study Completed"]
[null,"No | Must Provide",null,"Must Provide Comments"]
[]
[null,"Yes",null,null,null,"Yes"]
[null,"No",null,null,null,"No"]
[null,null,null,null,null,"There are no mineral rights associated with this property"]
[null,"Single Feed - Single Substation",null,"Single Feed - Single Substation"]
[null,"Dual Feed - Single Substation",null,"Dual Feed - Single Substation"]
[null,"Dual Feed - Dual Substations",null,"Dual Feed - Dual Substations"]
[null,"Dual Feed - Fully Redundant",null,"Dual Feed - Fully Redundant",null,"Submitted"]
[null,"Provided",null,null,null,"Did Not Submit"]
[null,"Do Not Have, But Will Obtain"]
[null,null,null,null,null,"Submitted"]
[null,null,null,null,null,"Did Not Submit"]
[null,"Yes | Attainment",null,"Yes | Attainment",null,"Do Not Have"]
[null,"No | Nonattainment",null,"No | Nonattainment"]
[]
[null,"Provided as Separate Attachment"]
[null," -",null,"Provided",null,"Provided"]
[null,"Not Provided | Will Provide",null,"Not Provided",null,"Not Provided"]
[null,null,null,"No Option Agreement",null,"No Marketing Agreement"]
[]
[null,null,null,null,null,"Unwilling to Record Covenants"]
[null,null,null,"Yes",null,"Record New"]
[null,"OHSE",null,"No",null,"Amend Existing Covenants"]
[null,"1CBUS",null,"No Mineral Rights"]
[null,"DDC"]
[null,"NEO"]
[null,"REDI",null,"Yes",null,"Yes"]
[null,"RGP",null,"No",null,"No"]
[null,null,null,"Not Rail-Served",null,"No Rail Spur Conceptual"]
[null,"Yes"]
[null,"No | Underway | Put completion date in comments"]
[null,"No | Approved by leadership but no action taken | Explain your approach to get completed in comments",null,"Yes"]
[null,"No approval, no budget | Explain your approach to get completed in comments",null,"No"]
[null,"Never been addressed with leadership | Explain why not in comments",null,"No USACE AJD Letter"]
[]
[null,"Provided with this submission",null,"Yes"]
[null,"Will get and send ASAP",null,"No"]
[null,"Not required due to phase I",null,"No SHPO Letter"]
[]
[]
[null,"Provided",null,"Yes"]
[null,"Do Not Have One",null,"No"]
[null,"In Progress",null,"No USFWS Letter"]
[]
[]
[null,"Provided"]
[null,"Do Not Have, But Will Obtain if Necessary"]
[null,"Do Not Have"]
[]
[]
[]
[null,"Copy provided with this submission"]
[null,"Will get a copy and send ASAP"]
[null,"Do not control with an option"]
[]
[]
[null,"Copy provided with this submission"]
[null,"Will get a copy and send ASAP"]
[null,"Do not have a marketing agreement"]
[]
[]
[null,"Copy provided with this submission"]
[null,"Will get a copy and send ASAP"]
[null,"Do not have covenants"]
[]
[]
[null,"Copy provided with this submission"]
[null,"Will get a copy and send ASAP"]
[null,"Do not have conceptual / masterplan"]
[]
[]
[null,"Copy provided with this submission"]
[null,"Will get a copy and send ASAP"]
[null,"Not zoned industrial"]
[]
[]
[null,"Provided with this submission"]
[null,"Will get and send ASAP"]
[]
[null,"Volunteer",null,"Volunteer"]
[null,"Full-time",null,"Full-time"]
[]
[null,"Submitted"]
[null,"Not submitted but will send ASAP"]
[]
[]
[null,"Revision | Updated Submission from Wave I"]
[null,"New Submission"]
[]
[]
[null,"Yes"]
[null,"No"]
[null,"Not in park"]
[]
[null,"Yes"]
[null,"No"]
[null,"Partial"]
[]
[null,"Yes"]
[null,"No"]
[]
[]
[null,"Yes"]
[null,"No"]
[null,"Study Not Required"]
[]
[null,"Yes"]
[null,"No"]
[null,"Community Owns Property"]
[]
[]
[null,"Yes",null,"Yes"]
[null,"No",null,"No"]
[null,"No Covenants",null,"Covenants In Place"]
[]
[null,"Yes"]
[null,"No"]
[null,"Must Provide Covenants"]
[]
[]
[null,"Yes"]
[null,"No"]
[null,"Study Not Completed"]
[]
[]
[null,"Yes"]
[null,"No"]
[null,"Study Already Completed"]
[]
[]
[null,"History Architecture"]
[null,"Literature Review"]
[null,"Phase I Archeology Study"]
[null,"Phase I & II Archeology Studies"]
[null,"Phase I Cultural Resources"]
[null,"Phase II Archeology Studies"]
[null,"Phase I Cultural Resources & Phase II Archeology Studies"]
[null,"Yes"]
[null,"No"]
[null,"Study Not Completed"]
[null,"Study Not Required"]
[]
[null,"River"]
[null,"Lake"]
[null,"Canal"]
[null,"Dry | Inland"]
[]
[null,"Yes"]
[null,"No"]
[null,"No Guidelines"]
[]
[null,"Yes"]
[null,"No"]
[null,"Community Owns Building"]
[]
[null,"Yes"]
[null,"No"]
[null,"Not in an Industrial Park"]
[]
[null,"Yes"]
[null,"No"]
[null,"No Master Plan"]

{"sheet":"Full Data Template","index":2,"n_rows":254,"n_cols":5,"rows_kept":254,"cut":false,"hidden":true,"merged":[[254,2,254,4],[6,2,6,4],[7,2,8,2],[7,3,8,3],[91,2,91,4],[97,2,97,4]]}
[]
[]
[null,null,"InSite's Stand-Alone/Industrial Park Site(s) Evaluation"]
[null,null,"LEDO Input Data Template"]
[null,null,"Highest and Best Use/Authentication Identification for Winning Jobs and Investment for your Community!"]
[null,null,"© 2021 InSite LLC: Confidential and Proprietary Property of InSite, LLC. The data template will remain in its original condition (formatting, spelling, etc.) as submitted to InSite."]
[null,null,"Current Stand-Alone Site/Industrial Park Input Information Template"]
[null,null,"Criteria","Response","Comments"]
[null,null,null,null,"Blue cells do not require data entry."]
[null,null,{"$f":"'LEDO Site Section'!C10","v":"Name of Stand-Alone Site or Industrial Park Submission"},{"$f":"'LEDO Site Section'!D10","v":"Fort Union Industrial Park"}]
[null,null,"LOCAL ECONOMIC DEVELOPMENT ORGANIZATION (LEDO) SECTION (to Include Owner Input)"]
[null,null,{"$f":"'LEDO Site Section'!#REF!","v":{"$error":"#REF!"}},{"$f":"VLOOKUP(C12,'LEDO Site Section'!$C$20:$D$64,2,0)","v":{"$error":"#REF!"}}]
[null,null,{"$f":"'LEDO Site Section'!C20","v":"Total available acreage of site"},{"$f":"VLOOKUP(C13,'LEDO Site Section'!$C$20:$D$64,2,0)","v":1200}]
[null,null,{"$f":"'LEDO Site Section'!C12","v":"Largest, contiguous, developable acreage (CDA) of site submission. See \"EX\" worksheet tabs."},{"$f":"VLOOKUP(C14,'LEDO Site Section'!$C$20:$D$64,2,0)","v":{"$error":"#N/A"}}]
[null,null,{"$f":"'LEDO Site Section'!C21","v":"minimum acreage owner is willing to subdivide"},{"$f":"VLOOKUP(C15,'LEDO Site Section'!$C$20:$D$21,2,0)","v":25}]
[null,null,{"$f":"'LEDO Site Section'!#REF!","v":{"$error":"#REF!"}},{"$f":"VLOOKUP(C16,'LEDO Site Section'!$C$20:$D$64,2,0)","v":{"$error":"#REF!"}}]
[null,null,{"$f":"'LEDO Site Section'!#REF!","v":{"$error":"#REF!"}},{"$f":"VLOOKUP(C17,'LEDO Site Section'!$C$20:$D$64,2,0)","v":{"$error":"#REF!"}}]
[null,null,{"$f":"'LEDO Site Section'!#REF!","v":{"$error":"#REF!"}},{"$f":"VLOOKUP(C18,'LEDO Site Section'!$C$20:$D$64,2,0)","v":{"$error":"#REF!"}}]
[null,null,{"$f":"'LEDO Site Section'!#REF!","v":{"$error":"#REF!"}},{"$f":"VLOOKUP(C19,'LEDO Site Section'!$C$22:$D$64,2,0)","v":{"$error":"#REF!"}}]
[null,null,{"$f":"'LEDO Site Section'!#REF!","v":{"$error":"#REF!"}},{"$f":"VLOOKUP(C20,'LEDO Site Section'!$C$26:$D$30,2,0)","v":{"$error":"#REF!"}}]
[null,null,{"$f":"'LEDO Site Section'!#REF!","v":{"$error":"#REF!"}},{"$f":"VLOOKUP(C21,'LEDO Site Section'!$C$26:$D$30,2,0)","v":{"$error":"#REF!"}}]
[null,null,{"$f":"'LEDO Site Section'!#REF!","v":{"$error":"#REF!"}},{"$f":"VLOOKUP(C22,'LEDO Site Section'!$C$26:$D$30,2,0)","v":{"$error":"#REF!"}}]
[null,null,{"$f":"'LEDO Site Section'!#REF!","v":{"$error":"#REF!"}},{"$f":"VLOOKUP(C23,'LEDO Site Section'!$C$26:$D$30,2,0)","v":{"$error":"#REF!"}}]
[null,null,{"$f":"'LEDO Site Section'!#REF!","v":{"$error":"#REF!"}},{"$f":"VLOOKUP(C24,'LEDO Site Section'!$C$26:$D$30,2,0)","v":{"$error":"#REF!"}}]
[null,null,{"$f":"'LEDO Site Section'!#REF!","v":{"$error":"#REF!"}},{"$f":"VLOOKUP(C25,'LEDO Site Section'!$C$26:$D$30,2,0)","v":{"$error":"#REF!"}}]
[null,null,{"$f":"'LEDO Site Section'!#REF!","v":{"$error":"#REF!"}},{"$f":"VLOOKUP(C26,'LEDO Site Section'!$C$26:$D$30,2,0)","v":{"$error":"#REF!"}}]
[null,null,{"$f":"'LEDO Site Section'!C26","v":"Name of entity responding to this data template"},{"$f":"VLOOKUP(C27,'LEDO Site Section'!$C$26:$D$30,2,0)","v":"Energy Capital Economic Development"}]
[null,null,{"$f":"'LEDO Site Section'!C27","v":"full name of person responding"},{"$f":"VLOOKUP(C28,'LEDO Site Section'!$C$26:$D$30,2,0)","v":"Phil Christopherson"}]
[null,null,{"$f":"'LEDO Site Section'!C28","v":"title of person responding"},{"$f":"VLOOKUP(C29,'LEDO Site Section'!$C$26:$D$30,2,0)","v":"CEO"}]
[null,null,{"$f":"'LEDO Site Section'!C29","v":"contact phone number"},{"$f":"VLOOKUP(C30,'LEDO Site Section'!$C$26:$D$30,2,0)","v":"307 686-2603"}]
[null,null,{"$f":"'LEDO Site Section'!C30","v":"contact email address"},{"$f":"VLOOKUP(C31,'LEDO Site Section'!$C$26:$D$30,2,0)","v":"phil@EnergyCapitalED.com"}]
[null,null,{"$f":"'LEDO Site Section'!C31","v":"Who is the Lead, Local Economic Development Agency (LEDO)?"},{"$f":"VLOOKUP(C32,'LEDO Site Section'!$C$31:$D$38,2,0)","v":"Energy Capital Economic Development"}]
[null,null,{"$f":"'LEDO Site Section'!C32","v":"Name of LEDO Director/CEO Contact?"},{"$f":"VLOOKUP(C33,'LEDO Site Section'!$C$31:$D$38,2,0)","v":"Phil Christopherson"}]
[null,null,{"$f":"'LEDO Site Section'!C33","v":"contact phone number"},{"$f":"VLOOKUP(C34,'LEDO Site Section'!$C$31:$D$38,2,0)","v":"307 686-2603"}]
[null,null,{"$f":"'LEDO Site Section'!C34","v":"contact email address"},{"$f":"VLOOKUP(C35,'LEDO Site Section'!$C$31:$D$38,2,0)","v":"phil@EnergyCapitalED.com"}]
[null,null,{"$f":"'LEDO Site Section'!#REF!","v":{"$error":"#REF!"}},{"$f":"VLOOKUP(C36,'LEDO Site Section'!$C$31:$D$38,2,0)","v":{"$error":"#REF!"}}]
[null,null,{"$f":"'LEDO Site Section'!#REF!","v":{"$error":"#REF!"}},{"$f":"VLOOKUP(C37,'LEDO Site Section'!$C$31:$D$38,2,0)","v":{"$error":"#REF!"}}]
[null,null,{"$f":"'LEDO Site Section'!#REF!","v":{"$error":"#REF!"}},{"$f":"VLOOKUP(C38,'LEDO Site Section'!$C$31:$D$38,2,0)","v":{"$error":"#REF!"}}]
[null,null,{"$f":"'LEDO Site Section'!#REF!","v":{"$error":"#REF!"}},{"$f":"VLOOKUP(C39,'LEDO Site Section'!$C$31:$D$38,2,0)","v":{"$error":"#REF!"}}]
[null,null,{"$f":"'LEDO Site Section'!C35","v":"Is there evidence of existing sink holes, natural springs, etc.? If yes, describe where in comments."},{"$f":"VLOOKUP(C40,'LEDO Site Section'!$C$31:$D$38,2,0)","v":"No"}]
[null,null,{"$f":"'LEDO Site Section'!C36","v":"Identify any easement and rights-of-way on the \nstand-alone site/within industrial park site(s), and list the ownership of each"},{"$f":"VLOOKUP(C41,'LEDO Site Section'!$C$31:$D$38,2,0)","v":"Subdivision plat available showing multple easements on the property"}]
[null,null,{"$f":"'LEDO Site Section'!C37","v":"Describe current use"},{"$f":"VLOOKUP(C42,'LEDO Site Section'!$C$31:$D$38,2,0)","v":"Industrial Park"}]
[null,null,{"$f":"'LEDO Site Section'!C38","v":"Describe former use"},{"$f":"VLOOKUP(C43,'LEDO Site Section'!$C$31:$D$38,2,0)","v":"Industrial site for adjacent coal mine"}]
[null,null,{"$f":"'LEDO Site Section'!C44","v":"Link to Example of Covenants and Restricted Uses"}]
[null,null,{"$f":"'LEDO Site Section'!C42","v":"Are there written and recorded covenants with the deed for the site submission to include a list of protective, restricted uses? "},{"$f":"VLOOKUP(C45,'LEDO Site Section'!$C$42:$D$43,2,0)","v":"Yes"}]
[null,null,{"$f":"'LEDO Site Section'!#REF!","v":{"$error":"#REF!"}},{"$f":"VLOOKUP(C46,'LEDO Site Section'!$C$20:$D$64,2,0)","v":{"$error":"#REF!"}}]
[null,null,{"$f":"'LEDO Site Section'!#REF!","v":{"$error":"#REF!"}},{"$f":"VLOOKUP(C47,'LEDO Site Section'!$C$20:$D$64,2,0)","v":{"$error":"#REF!"}}]
[null,null,{"$f":"'LEDO Site Section'!C43","v":"if no, willingness to record new or amend existing covenants with the provided restricted uses.  \nIf not willing, explain in comments."},{"$f":"VLOOKUP(C48,'LEDO Site Section'!$C$20:$D$64,2,0)","v":0}]
[null,null,{"$f":"'LEDO Site Section'!C49","v":"Link to Example Site Plan"}]
[null,null,{"$f":"'LEDO Site Section'!C47","v":"Have a simple, site(s) layout boundary map with maximum, contiguous, developable acreage, and include the maximum square footage of a building footprint on the site's developable acreage.  \n*Or a simple industrial park layout boundary map with site(s) shown per maximum, contiguous, developable acreage as site boundaries and lot lines, and include the maximum square footage of a building footprint on each site's developable acreage."},{"$f":"'LEDO Site Section'!D47","v":"Yes"}]
[null,null,{"$f":"'LEDO Site Section'!C48","v":"if yes, provided site plan/layout as a separate attachment and with this submission"},{"$f":"VLOOKUP(C51,'LEDO Site Section'!$C$47:$D$64,2,0)","v":0}]
[null,null,{"$f":"'LEDO Site Section'!C50","v":"Number of years site has been available (existence)"},{"$f":"VLOOKUP(C52,'LEDO Site Section'!$C$47:$D$64,2,0)","v":10}]
[null,null,{"$f":"'LEDO Site Section'!C51","v":"number of years site has been vacant"},{"$f":"VLOOKUP(C53,'LEDO Site Section'!$C$47:$D$64,2,0)","v":15}]
[null,null,{"$f":"'LEDO Site Section'!C52","v":"number of companies in the industrial park, as applicable"},{"$f":"VLOOKUP(C54,'LEDO Site Section'!$C$47:$D$64,2,0)","v":3}]
[null,null,{"$f":"'LEDO Site Section'!C53","v":"number of most recent announcement(s). In comments list company, year, jobs, investment."},{"$f":"VLOOKUP(C55,'LEDO Site Section'!$C$47:$D$64,2,0)","v":0}]
[null,null,{"$f":"'LEDO Site Section'!C39","v":"Zoned industrial"},{"$f":"VLOOKUP(C56,'LEDO Site Section'!$C$47:$D$64,2,0)","v":{"$error":"#N/A"}}]
[null,null,{"$f":"'LEDO Site Section'!C40","v":"if no, define possibility and length of process for rezoning"},{"$f":"VLOOKUP(C57,'LEDO Site Section'!$C$47:$D$64,2,0)","v":{"$error":"#N/A"}}]
[null,null,{"$f":"'LEDO Site Section'!C41","v":"provided a legal definition of zoning code and zoning map to include site boundaries as a separate attachment and with this submission"},{"$f":"VLOOKUP(C58,'LEDO Site Section'!$C$47:$D$64,2,0)","v":{"$error":"#N/A"}}]
[null,null,{"$f":"'LEDO Site Section'!C72","v":"are there industrial quality roads/truck routes free from weight or height restrictions providing access to the property? (if no, describe in comments)."},{"$f":"VLOOKUP(C59,'LEDO Site Section'!$C$47:$D$64,2,0)","v":{"$error":"#N/A"}}]
[null,null,{"$f":"'LEDO Site Section'!C45","v":"Describe surrounding uses"},{"$f":"VLOOKUP(C60,'LEDO Site Section'!$C$47:$D$64,2,0)","v":{"$error":"#N/A"}}]
[null,null,{"$f":"'LEDO Site Section'!C46","v":"adjacent to other manufacturing operations/facilities"},{"$f":"VLOOKUP(C61,'LEDO Site Section'!$C$47:$D$64,2,0)","v":{"$error":"#N/A"}}]
[null,null,{"$f":"'LEDO Site Section'!C54","v":"Distance in miles from subdivision/dense residential (describe type of residential in comments)"},{"$f":"VLOOKUP(C62,'LEDO Site Section'!$C$47:$D$64,2,0)","v":4}]
[null,null,{"$f":"'LEDO Site Section'!C55","v":"distance in miles from schools"},{"$f":"VLOOKUP(C63,'LEDO Site Section'!$C$47:$D$64,2,0)","v":5}]
[null,null,{"$f":"'LEDO Site Section'!C56","v":"distance in miles from public park"},{"$f":"VLOOKUP(C64,'LEDO Site Section'!$C$47:$D$64,2,0)","v":5}]
[null,null,{"$f":"'LEDO Site Section'!C57","v":"distance in miles from retirement centers"},{"$f":"VLOOKUP(C65,'LEDO Site Section'!$C$47:$D$64,2,0)","v":6.6}]
[null,null,{"$f":"'LEDO Site Section'!C58","v":"distance in miles from correctional facilities"},{"$f":"VLOOKUP(C66,'LEDO Site Section'!$C$47:$D$64,2,0)","v":7}]
[null,null,{"$f":"'LEDO Site Section'!C59","v":"distance in miles from cemeteries \n(note in comments - small, medium, or large cemetery)"},{"$f":"VLOOKUP(C67,'LEDO Site Section'!$C$47:$D$64,2,0)","v":6.14}]
[null,null,{"$f":"'LEDO Site Section'!C60","v":"Is the site in a 100-year flood plain?  Partially would be answered yes.  If submitting multiple industrial park sites, note site number(s) in the comments."},{"$f":"VLOOKUP(C68,'LEDO Site Section'!$C$47:$D$64,2,0)","v":"No"}]
[null,null,{"$f":"'LEDO Site Section'!C61","v":"where is the location of the flood plain on the site? \n(i.e. Northwest corner). If submitting multiple industrial park sites, note in comments the additional site number(s) and location."},{"$f":"VLOOKUP(C69,'LEDO Site Section'!$C$47:$D$64,2,0)","v":0}]
[null,null,{"$f":"'LEDO Site Section'!C62","v":"what is the percentage of the site(s) in the floodplain? If submitting multiple industrial park sites, note in comments the site number and percent in floodplain."},{"$f":"VLOOKUP(C70,'LEDO Site Section'!$C$47:$D$64,2,0)","v":0}]
[null,null,{"$f":"'LEDO Site Section'!C63","v":"are there any areas with bodies of water, creeks, wetlands, etc. that impact the constructible, developable acreage of the site? (if yes, note how many acres per site and location in comments)?"},{"$f":"VLOOKUP(C71,'LEDO Site Section'!$C$47:$D$64,2,0)","v":"No"}]
[null,null,{"$f":"'LEDO Site Section'!C64","v":"provided a 100-year FEMA flood plain map, to include the site boundaries, as a separate attachment and with this submission"},{"$f":"VLOOKUP(C72,'LEDO Site Section'!$C$47:$D$64,2,0)","v":0}]
[null,null,{"$f":"'LEDO Site Section'!#REF!","v":{"$error":"#REF!"}}]
[null,null,{"$f":"'LEDO Site Section'!#REF!","v":{"$error":"#REF!"}},{"$f":"VLOOKUP(C74,'LEDO Site Section'!$C$65:$D$77,2,0)","v":{"$error":"#REF!"}}]
[null,null,{"$f":"'LEDO Site Section'!#REF!","v":{"$error":"#REF!"}},{"$f":"VLOOKUP(C75,'LEDO Site Section'!$C$65:$D$77,2,0)","v":{"$error":"#REF!"}}]
[null,null,{"$f":"'LEDO Site Section'!#REF!","v":{"$error":"#REF!"}},{"$f":"VLOOKUP(C76,'LEDO Site Section'!$C$65:$D$77,2,0)","v":{"$error":"#REF!"}}]
[null,null,{"$f":"'LEDO Site Section'!#REF!","v":{"$error":"#REF!"}},{"$f":"VLOOKUP(C77,'LEDO Site Section'!$C$65:$D$77,2,0)","v":{"$error":"#REF!"}}]
[null,null,{"$f":"'LEDO Site Section'!#REF!","v":{"$error":"#REF!"}},{"$f":"VLOOKUP(C78,'LEDO Site Section'!$C$65:$D$77,2,0)","v":{"$error":"#REF!"}}]
[null,null,{"$f":"'LEDO Site Section'!#REF!","v":{"$error":"#REF!"}},{"$f":"VLOOKUP(C79,'LEDO Site Section'!$C$65:$D$77,2,0)","v":{"$error":"#REF!"}}]
[null,null,{"$f":"'LEDO Site Section'!C65","v":"Describe general site configuration.   If submitting multiple industrial park sites, note in comments the site number and configuration. \n(rectangular, square, L, etc.)."},{"$f":"VLOOKUP(C80,'LEDO Site Section'!$C$65:$D$77,2,0)","v":"Rolling low hills"}]
[null,null,{"$f":"'LEDO Site Section'!C66","v":"Are there any structures on the site that will impact constructability?  If yes, describe in comments.  \nIf submitting multiple industrial park sites, note in comments the site number and description."},{"$f":"VLOOKUP(C81,'LEDO Site Section'!$C$65:$D$77,2,0)","v":"No"}]
[null,null,{"$f":"'LEDO Site Section'!C67","v":"Indicate the terrain of the site.  If submitting multiple industrial park sites, note in comments the site number and terrain. (flat, gently rolling, challenging)."},{"$f":"VLOOKUP(C82,'LEDO Site Section'!$C$65:$D$77,2,0)","v":"low rolling hills"}]
[null,null,{"$f":"'LEDO Site Section'!C68","v":"what is the percent slope of the site? Determine by using a topography map.  Change of elevation divided by the distance. If submitting multiple industrial park sites, note in comments the site number and percent."},{"$f":"VLOOKUP(C83,'LEDO Site Section'!$C$65:$D$77,2,0)","v":0.03}]
[null,null,{"$f":"'LEDO Site Section'!C69","v":"Describe the soil type (sandy, clay, etc.). If submitting multiple industrial park sites, note in comments the site number and type."},{"$f":"VLOOKUP(C84,'LEDO Site Section'!$C$65:$D$77,2,0)","v":"thin layers of top soil over scoria "}]
[null,null,{"$f":"'LEDO Site Section'!C70","v":"Is there a graded pad on the site?  If yes, indicate square footage for building footprint in comments.  If submitting multiple industrial park sites, note in comments the site number, yes or no and building footprint square footage."},{"$f":"VLOOKUP(C85,'LEDO Site Section'!$C$65:$D$77,2,0)","v":"No"}]
[null,null,{"$f":"'LEDO Site Section'!C71","v":"Is the site easily accessible? If no, describe impediments."},{"$f":"VLOOKUP(C86,'LEDO Site Section'!$C$65:$D$77,2,0)","v":"Yes"}]
[null,null,{"$f":"'LEDO Site Section'!C73","v":"number of roads accessing the site"},{"$f":"VLOOKUP(C87,'LEDO Site Section'!$C$65:$D$77,2,0)","v":2}]
[null,null,{"$f":"'LEDO Site Section'!C74","v":"describe any road access improvements necessary"},{"$f":"VLOOKUP(C88,'LEDO Site Section'!$C$65:$D$77,2,0)","v":"Roads are currently gravel, "}]
[null,null,{"$f":"'LEDO Site Section'!C75","v":"distance in miles or feet (indicate in comments) to major 4-lane highway and/or interstate (include names in comments)"},{"$f":"VLOOKUP(C89,'LEDO Site Section'!$C$65:$D$77,2,0)","v":4.2}]
[null,null,{"$f":"'LEDO Site Section'!C76","v":"is access to the site controlled by a traffic light?"},{"$f":"VLOOKUP(C90,'LEDO Site Section'!$C$65:$D$77,2,0)","v":"No"}]
[null,null,{"$f":"'LEDO Site Section'!C77","v":"Can the site be viewed from the highway/interstate?"},{"$f":"VLOOKUP(C91,'LEDO Site Section'!$C$65:$D$77,2,0)","v":"Yes"}]
[null,null,{"$f":"'LEDO Site Section'!C78","v":"GENERAL TRANSPORTATION SECTION"}]
[null,null,{"$f":"'LEDO Site Section'!C79","v":"Distance in miles to the nearest commercial airport"},{"$f":"VLOOKUP(C93,'LEDO Site Section'!$C$79:$D$83,2,0)","v":5}]
[null,null,{"$f":"'LEDO Site Section'!C80","v":"name of nearest commercial airport"},{"$f":"VLOOKUP(C94,'LEDO Site Section'!$C$79:$D$83,2,0)","v":"NE Wyoming Regional Airport"}]
[null,null,{"$f":"'LEDO Site Section'!C81","v":"Distance in miles to the nearest port"},{"$f":"VLOOKUP(C95,'LEDO Site Section'!$C$79:$D$83,2,0)","v":680}]
[null,null,{"$f":"'LEDO Site Section'!C82","v":"type of port"},{"$f":"VLOOKUP(C96,'LEDO Site Section'!$C$79:$D$83,2,0)","v":"Lake"}]
[null,null,{"$f":"'LEDO Site Section'!C83","v":"name of port"},{"$f":"VLOOKUP(C97,'LEDO Site Section'!$C$79:$D$83,2,0)","v":"Port of Duluth-Superior"}]
[null,null,{"$f":"'LEDO Site Section'!#REF!","v":{"$error":"#REF!"}}]
[null,null,{"$f":"'LEDO Site Section'!#REF!","v":{"$error":"#REF!"}},{"$f":"VLOOKUP(C99,'LEDO Site Section'!#REF!,2,0)","v":{"$error":"#REF!"}}]
[null,null,{"$f":"'LEDO Site Section'!#REF!","v":{"$error":"#REF!"}},{"$f":"VLOOKUP(C100,'LEDO Site Section'!#REF!,2,0)","v":{"$error":"#REF!"}}]
[null,null,{"$f":"'LEDO Site Section'!#REF!","v":{"$error":"#REF!"}},{"$f":"VLOOKUP(C101,'LEDO Site Section'!#REF!,2,0)","v":{"$error":"#REF!"}}]
[null,null,{"$f":"'LEDO Site Section'!#REF!","v":{"$error":"#REF!"}},{"$f":"VLOOKUP(C102,'LEDO Site Section'!#REF!,2,0)","v":{"$error":"#REF!"}}]
[null,null,{"$f":"'LEDO Site Section'!#REF!","v":{"$error":"#REF!"}},{"$f":"VLOOKUP(C103,'LEDO Site Section'!#REF!,2,0)","v":{"$error":"#REF!"}}]
[null,null,{"$f":"'LEDO Site Section'!#REF!","v":{"$error":"#REF!"}},{"$f":"VLOOKUP(C104,'LEDO Site Section'!#REF!,2,0)","v":{"$error":"#REF!"}}]
[null,null,{"$f":"'LEDO Site Section'!#REF!","v":{"$error":"#REF!"}},{"$f":"VLOOKUP(C105,'LEDO Site Section'!#REF!,2,0)","v":{"$error":"#REF!"}}]
[null,null,{"$f":"'LEDO Site Section'!#REF!","v":{"$error":"#REF!"}},{"$f":"VLOOKUP(C106,'LEDO Site Section'!#REF!,2,0)","v":{"$error":"#REF!"}}]
[null,null,{"$f":"'LEDO Site Section'!#REF!","v":{"$error":"#REF!"}},{"$f":"VLOOKUP(C107,'LEDO Site Section'!#REF!,2,0)","v":{"$error":"#REF!"}}]
[null,null,{"$f":"'LEDO Site Section'!#REF!","v":{"$error":"#REF!"}},{"$f":"VLOOKUP(C108,'LEDO Site Section'!#REF!,2,0)","v":{"$error":"#REF!"}}]
[null,null,{"$f":"'LEDO Site Section'!C94","v":"OTHER INFORMATION SECTION"}]
[null,null,{"$f":"'LEDO Site Section'!C95","v":"Regional population (45-mile radius \ncommuting pattern)"},{"$f":"VLOOKUP(C110,'LEDO Site Section'!C95:$D$98,2,0)","v":47026}]
[null,null,{"$f":"'LEDO Site Section'!C96","v":"Regional workforce (45-mile radius commuting pattern)"},{"$f":"VLOOKUP(C111,'LEDO Site Section'!C96:$D$98,2,0)","v":23600}]
[null,null,{"$f":"'LEDO Site Section'!#REF!","v":{"$error":"#REF!"}},{"$f":"VLOOKUP(C112,'LEDO Site Section'!C97:$D$98,2,0)","v":{"$error":"#REF!"}}]
[null,null,{"$f":"'LEDO Site Section'!#REF!","v":{"$error":"#REF!"}},{"$f":"VLOOKUP(C113,'LEDO Site Section'!C97:$D$98,2,0)","v":{"$error":"#REF!"}}]
[null,null,{"$f":"'LEDO Site Section'!C97","v":"Does your city and/or county have incentive guidelines/thresholds that have been approved by the local, governing body?"},{"$f":"VLOOKUP(C114,'LEDO Site Section'!C97:$D$98,2,0)","v":"No"}]
[null,null,{"$f":"'LEDO Site Section'!C98","v":"does your city and/or county have incentive guidelines/thresholds that have been approved by the local, governing body that are specific to the site?"},{"$f":"VLOOKUP(C115,'LEDO Site Section'!C98:$D$98,2,0)","v":"No"}]
[null,null,"OWNERSHIP SECTION (to Include Input from LEDO)"]
[null,null,{"$f":"#REF!","v":{"$error":"#REF!"}},{"$f":"VLOOKUP(C117,#REF!,2,0)","v":{"$error":"#REF!"}}]
[null,null,{"$f":"#REF!","v":{"$error":"#REF!"}},{"$f":"VLOOKUP(C118,#REF!,2,0)","v":{"$error":"#REF!"}}]
[null,null,{"$f":"#REF!","v":{"$error":"#REF!"}},{"$f":"VLOOKUP(C119,#REF!,2,0)","v":{"$error":"#REF!"}}]
[null,null,{"$f":"#REF!","v":{"$error":"#REF!"}},{"$f":"VLOOKUP(C120,#REF!,2,0)","v":{"$error":"#REF!"}}]
[null,null,{"$f":"#REF!","v":{"$error":"#REF!"}},{"$f":"VLOOKUP(C121,#REF!,2,0)","v":{"$error":"#REF!"}}]
[null,null,{"$f":"#REF!","v":{"$error":"#REF!"}},{"$f":"VLOOKUP(C122,#REF!,2,0)","v":{"$error":"#REF!"}}]
[null,null,{"$f":"#REF!","v":{"$error":"#REF!"}},{"$f":"VLOOKUP(C123,#REF!,2,0)","v":{"$error":"#REF!"}}]
[null,null,{"$f":"#REF!","v":{"$error":"#REF!"}},{"$f":"VLOOKUP(C124,#REF!,2,0)","v":{"$error":"#REF!"}}]
[null,null,{"$f":"#REF!","v":{"$error":"#REF!"}},{"$f":"VLOOKUP(C125,#REF!,2,0)","v":{"$error":"#REF!"}}]
[null,null,{"$f":"#REF!","v":{"$error":"#REF!"}},{"$f":"VLOOKUP(C126,#REF!,2,0)","v":{"$error":"#REF!"}}]
[null,null,{"$f":"#REF!","v":{"$error":"#REF!"}}]
[null,null,{"$f":"#REF!","v":{"$error":"#REF!"}},{"$f":"VLOOKUP(C128,#REF!,2,0)","v":{"$error":"#REF!"}}]
[null,null,{"$f":"#REF!","v":{"$error":"#REF!"}},{"$f":"VLOOKUP(C129,#REF!,2,0)","v":{"$error":"#REF!"}}]
[null,null,{"$f":"#REF!","v":{"$error":"#REF!"}},{"$f":"VLOOKUP(C130,#REF!,2,0)","v":{"$error":"#REF!"}}]
[null,null,{"$f":"#REF!","v":{"$error":"#REF!"}}]
[null,null,{"$f":"#REF!","v":{"$error":"#REF!"}},{"$f":"VLOOKUP(C132,#REF!,2,0)","v":{"$error":"#REF!"}}]
[null,null,"Site Due Diligence Questions (Input from Owner and LEDO)"]
[null,null,"Any Due Diligence Dated 10 years or Older, Must Be Updated"]
[null,null,{"$f":"'Owner LEDO Due Diligence Sect'!C22","v":"Completed Phase I ESA on the site submission"},{"$f":"VLOOKUP(C135,'Owner LEDO Due Diligence Sect'!C22:$D$28,2,0)","v":"No"}]
[null,null,{"$f":"'Owner LEDO Due Diligence Sect'!C23","v":"if yes, date of the Phase I ESA (if cell input does not function correctly, input date into comments)"},{"$f":"VLOOKUP(C136,'Owner LEDO Due Diligence Sect'!C23:$D$28,2,0)","v":0}]
[null,null,{"$f":"'Owner LEDO Due Diligence Sect'!C24","v":"do the results of the Phase I ESA require further action?"},{"$f":"VLOOKUP(C137,'Owner LEDO Due Diligence Sect'!C24:$D$28,2,0)","v":0}]
[null,null,{"$f":"'Owner LEDO Due Diligence Sect'!C25","v":"do you (owner and LEDO) have an electronic copy of the study on file? If no, get one for your files. \nDo not provide full study."},{"$f":"VLOOKUP(C138,'Owner LEDO Due Diligence Sect'!C25:$D$28,2,0)","v":0}]
[null,null,{"$f":"'Owner LEDO Due Diligence Sect'!C26","v":"Link to Content for Engineering Firm Letter.\nAny other format will be rejected."}]
[null,null,{"$f":"'Owner LEDO Due Diligence Sect'!C27","v":"provided summary letter from the engineering firm in the identical format shown in the example, that is no more than 10 years old and is no more than one page, stating specifically and exactly that the site is clear; and if not, why and what has to be done next."},{"$f":"'Owner LEDO Due Diligence Sect'!D27","v":0}]
[null,null,{"$f":"'Owner LEDO Due Diligence Sect'!C28","v":"if a Phase I ESA has not been completed, are you willing to pursue this effort?"},{"$f":"VLOOKUP(C141,'Owner LEDO Due Diligence Sect'!C28:$D$28,2,0)","v":"Yes"}]
[null,null,{"$f":"'Owner LEDO Due Diligence Sect'!C30","v":"Completed Phase II ESA on the entire site submission"},{"$f":"VLOOKUP(C142,'Owner LEDO Due Diligence Sect'!C30:$D$34,2,0)","v":"No"}]
[null,null,{"$f":"'Owner LEDO Due Diligence Sect'!C31","v":"if yes, date of the Phase II ESA (if cell input does not function correctly, input date into comments)"},{"$f":"VLOOKUP(C143,'Owner LEDO Due Diligence Sect'!C31:$D$34,2,0)","v":0}]
[null,null,{"$f":"'Owner LEDO Due Diligence Sect'!C32","v":"do you (owner and LEDO) have an electronic copy of the study on file? If no, get one for your files. \nDo not provide full study."},{"$f":"VLOOKUP(C144,'Owner LEDO Due Diligence Sect'!C32:$D$34,2,0)","v":0}]
[null,null,{"$f":"'Owner LEDO Due Diligence Sect'!C33","v":"provided summary letter from the engineering firm in the identical format shown in the example, that is no more than 10 years old and is no more than one page, stating specifically and exactly that the site is clear; and if not, why and what has to be done next."},{"$f":"'Owner LEDO Due Diligence Sect'!D33","v":0}]
[null,null,{"$f":"'Owner LEDO Due Diligence Sect'!C34","v":"if a Phase II ESA has not been completed, are you willing to pursue this effort?"},{"$f":"VLOOKUP(C146,'Owner LEDO Due Diligence Sect'!C34:$D$34,2,0)","v":"Yes"}]
[null,null,{"$f":"'Owner LEDO Due Diligence Sect'!C36","v":"Completed Geotechnical Study on the\nentire site submission"},{"$f":"VLOOKUP(C147,'Owner LEDO Due Diligence Sect'!C36:$D$41,2,0)","v":"No"}]
[null,null,{"$f":"'Owner LEDO Due Diligence Sect'!C37","v":"if yes, date of the Geotechnical Study (if cell input does not function correctly, input date into comments)"},{"$f":"VLOOKUP(C148,'Owner LEDO Due Diligence Sect'!C37:$D$41,2,0)","v":"00:00:00"}]
[null,null,{"$f":"'Owner LEDO Due Diligence Sect'!C38","v":"do you (owner and LEDO) have an electronic copy of the study on file? If no, get one for your files. \nDo not provide full study."},{"$f":"VLOOKUP(C149,'Owner LEDO Due Diligence Sect'!C38:$D$41,2,0)","v":0}]
[null,null,{"$f":"'Owner LEDO Due Diligence Sect'!C39","v":"Link to Content for Engineering Firm Letter.\nAny other format will be rejected."}]
[null,null,{"$f":"'Owner LEDO Due Diligence Sect'!C40","v":"provided summary letter from the engineering firm in the identical format shown in the example, that is no more than 10 years old and is no more than one page, stating specifically and exactly that the site is clear; and if not, why and what has to be done next."},{"$f":"'Owner LEDO Due Diligence Sect'!D40","v":0}]
[null,null,{"$f":"'Owner LEDO Due Diligence Sect'!C41","v":"if a Geotechnical Study has not been completed, are you willing to pursue this effort?"},{"$f":"VLOOKUP(C152,'Owner LEDO Due Diligence Sect'!C41:$D$45,2,0)","v":"Yes"}]
[null,null,{"$f":"'Owner LEDO Due Diligence Sect'!C43","v":"Completed Wetlands Delineation Study on \nthe entire site submission"},{"$f":"VLOOKUP(C153,'Owner LEDO Due Diligence Sect'!C43:$D$45,2,0)","v":"No"}]
[null,null,{"$f":"'Owner LEDO Due Diligence Sect'!C44","v":"if yes, date of the Wetland Delineation Study (if cell input does not function correctly, input date into comments)"},{"$f":"VLOOKUP(C154,'Owner LEDO Due Diligence Sect'!C44:$D$45,2,0)","v":0}]
[null,null,{"$f":"'Owner LEDO Due Diligence Sect'!C45","v":"do you (owner and LEDO) have an electronic copy of the study on file? If no, get one for your files. \nDo not provide full study."},{"$f":"VLOOKUP(C155,'Owner LEDO Due Diligence Sect'!C45:$D$45,2,0)","v":0}]
[null,null,{"$f":"'Owner LEDO Due Diligence Sect'!C46","v":"Link to Content for Engineering Firm Letter.\nAny other format will be rejected."}]
[null,null,{"$f":"'Owner LEDO Due Diligence Sect'!C47","v":"provided summary letter from the engineering firm in the identical format shown in the example, that is no more than 10 years old and is no more than one page, stating specifically and exactly that the site is clear and if not, why and what has to be done next."},{"$f":"'Owner LEDO Due Diligence Sect'!D47","v":0}]
[null,null,{"$f":"'Owner LEDO Due Diligence Sect'!C48","v":"included wetlands delineation map with park/site boundaries as a separate attachment and with this submission"},{"$f":"'Owner LEDO Due Diligence Sect'!D48","v":0}]
[null,null,{"$f":"'Owner LEDO Due Diligence Sect'!C49","v":"Link to Example Final JD Letter.\nPreliminary JD's are not accepted."}]
[null,null,{"$f":"'Owner LEDO Due Diligence Sect'!C50","v":"provided an APPROVED, FINAL (not preliminary) Jurisdictional Determination Letter from the Corps of Engineers dated within the last 10 years as a separate attachment and with this submission."},{"$f":"VLOOKUP(C160,'Owner LEDO Due Diligence Sect'!C47:$D$70,2,0)","v":0}]
[null,null,{"$f":"'Owner LEDO Due Diligence Sect'!C51","v":"if a Wetlands Delineation Study has not been completed, are you willing to pursue this effort?"},{"$f":"VLOOKUP(C161,'Owner LEDO Due Diligence Sect'!C48:$D$70,2,0)","v":"Yes"}]
[null,null,{"$f":"'Owner LEDO Due Diligence Sect'!C53","v":"Completed Cultural Resource Study on the entire\nsite submission (not a literature review) "},{"$f":"VLOOKUP(C162,'Owner LEDO Due Diligence Sect'!C49:$D$70,2,0)","v":"No"}]
[null,null,{"$f":"'Owner LEDO Due Diligence Sect'!C54","v":"if yes, date of the Cultural Resource Study (if cell input does not function correctly, input date into comments)"},{"$f":"VLOOKUP(C163,'Owner LEDO Due Diligence Sect'!C50:$D$70,2,0)","v":0}]
[null,null,{"$f":"'Owner LEDO Due Diligence Sect'!C55","v":"do you (owner and LEDO) have an electronic copy of the study on file? If no, get one for your files. \nDo not provide full study."},{"$f":"VLOOKUP(C164,'Owner LEDO Due Diligence Sect'!C51:$D$70,2,0)","v":0}]
[null,null,{"$f":"'Owner LEDO Due Diligence Sect'!C56","v":"Link to Content for Engineering Firm Letter.\nAny other format will be rejected."}]
[null,null,{"$f":"'Owner LEDO Due Diligence Sect'!C57","v":"provided summary letter from the engineering firm in the identical format shown in the example, that is no more than 10 years old and is no more than one page, stating specifically and exactly that the site is clear and if not, why and what has to be done next."},{"$f":"'Owner LEDO Due Diligence Sect'!D57","v":0}]
[null,null,{"$f":"'Owner LEDO Due Diligence Sect'!C58","v":"included historical site delineation map with park/site boundaries as a separate attachment and with this submission"},{"$f":"VLOOKUP(C167,'Owner LEDO Due Diligence Sect'!C54:$D$70,2,0)","v":0}]
[null,null,{"$f":"'Owner LEDO Due Diligence Sect'!C59","v":"Link to Example SHPO Letter"}]
[null,null,{"$f":"'Owner LEDO Due Diligence Sect'!C60","v":"provided a concurrence letter from SHPO - Ohio History Connection (State Historic and Preservation Office) dated within the last 10 years as a separate attachment and with this submission. "},{"$f":"VLOOKUP(C169,'Owner LEDO Due Diligence Sect'!C55:$D$70,2,0)","v":0}]
[null,null,{"$f":"'Owner LEDO Due Diligence Sect'!C61","v":"if a Phase I Cultural Resources Study has not been completed, are you willing to pursue this effort?"},{"$f":"VLOOKUP(C170,'Owner LEDO Due Diligence Sect'!C56:$D$70,2,0)","v":"Yes"}]
[null,null,{"$f":"'Owner LEDO Due Diligence Sect'!C63","v":"Completed Endangered Species Study on the entire site submission"},{"$f":"VLOOKUP(C171,'Owner LEDO Due Diligence Sect'!C57:$D$70,2,0)","v":"No"}]
[null,null,{"$f":"'Owner LEDO Due Diligence Sect'!C64","v":"if yes, date of the Endangered Species Study (if cell input does not function correctly, input date into comments)"},{"$f":"VLOOKUP(C172,'Owner LEDO Due Diligence Sect'!C58:$D$70,2,0)","v":0}]
[null,null,{"$f":"'Owner LEDO Due Diligence Sect'!C65","v":"do you (owner and LEDO) have an electronic copy of the study on file. If no, get one for your files? \nDo not provide full study."},{"$f":"VLOOKUP(C173,'Owner LEDO Due Diligence Sect'!C59:$D$70,2,0)","v":0}]
[null,null,{"$f":"'Owner LEDO Due Diligence Sect'!C66","v":"Link to Content for Engineering Firm Letter.\nAny other format will be rejected."}]
[null,null,{"$f":"'Owner LEDO Due Diligence Sect'!C67","v":"provided summary letter from the engineering firm in the identical format shown in the example, that is no more than 10 years old and is no more than one page, stating specifically and exactly that the site is clear and if not, why and what has to be done next.  "},{"$f":"'Owner LEDO Due Diligence Sect'!D67","v":0}]
[null,null,{"$f":"'Owner LEDO Due Diligence Sect'!C68","v":"Link to Example USFWS Letter"}]
[null,null,{"$f":"'Owner LEDO Due Diligence Sect'!C69","v":"provided a letter from USFWS (U.S. Fish and Wildlife Services) as a separate attachment and with this submission, confirming no findings or findings and path forward for the site dated within the last 10 years."},{"$f":"VLOOKUP(C177,'Owner LEDO Due Diligence Sect'!C61:$D$70,2,0)","v":0}]
[null,null,{"$f":"'Owner LEDO Due Diligence Sect'!C70","v":"if an Endangered Species Study has not been completed, are you willing to pursue this effort?"},{"$f":"VLOOKUP(C178,'Owner LEDO Due Diligence Sect'!C63:$D$70,2,0)","v":"Yes"}]
[null,null,"Electric Questions"]
[null,null,{"$f":"'Electric Section'!C20","v":"Electric lines are to the site boundaries"},{"$f":"VLOOKUP(C180,'Electric Section'!C20:$D$40,2,0)","v":"Yes"}]
[null,null,{"$f":"'Electric Section'!C21","v":"if no, distance in feet"},{"$f":"VLOOKUP(C181,'Electric Section'!C21:$D$40,2,0)","v":0}]
[null,null,{"$f":"'Electric Section'!C25","v":"Name of provider"},{"$f":"VLOOKUP(C182,'Electric Section'!C25:$D$40,2,0)","v":"Powder River Energy Coporation"}]
[null,null,{"$f":"'Electric Section'!C26","v":"name of utility contact representative providing information"},{"$f":"VLOOKUP(C183,'Electric Section'!C26:$D$40,2,0)","v":"Taylor Johnson"}]
[null,null,{"$f":"'Electric Section'!C27","v":"title of person responding"},{"$f":"VLOOKUP(C184,'Electric Section'!C27:$D$40,2,0)","v":"System Engineer"}]
[null,null,{"$f":"'Electric Section'!C28","v":"contact phone number"},{"$f":"VLOOKUP(C185,'Electric Section'!C28:$D$40,2,0)","v":"307-680-0096"}]
[null,null,{"$f":"'Electric Section'!C29","v":"contact email address"},{"$f":"VLOOKUP(C186,'Electric Section'!C29:$D$40,2,0)","v":"taylorj@precorp.coop"}]
[null,null,{"$f":"'Electric Section'!C30","v":"Size of line(s) at the site boundaries"},{"$f":"VLOOKUP(C187,'Electric Section'!C30:$D$41,2,0)","v":"2/0, 4/0"}]
[null,null,{"$f":"'Electric Section'!C31","v":"Existing distribution-level capacity at the \nsite boundaries (must provide in MW)"},{"$f":"VLOOKUP(C188,'Electric Section'!C31:$D$41,2,0)","v":4.5}]
[null,null,{"$f":"'Electric Section'!C35","v":"Response Optional:\nIs transmission-level service available at the \nsite boundaries?"},{"$f":"VLOOKUP(C189,'Electric Section'!C35:$D$41,2,0)","v":"No"}]
[null,null,{"$f":"'Electric Section'!C36","v":"Response Optional:\nProvide approximate transmission-level service capacity.  Indicate in the comments section whether the number is in MW (preferred) or voltage."},{"$f":"VLOOKUP(C190,'Electric Section'!C36:$D$41,2,0)","v":0}]
[null,null,{"$f":"'Electric Section'!C37","v":"Distance in miles to substation serving the \nsite boundaries"},{"$f":"VLOOKUP(C191,'Electric Section'!C37:$D$41,2,0)","v":0.85}]
[null,null,{"$f":"'Electric Section'!C38","v":"Type of feed"},{"$f":"VLOOKUP(C192,'Electric Section'!C38:$D$41,2,0)","v":"Dual Feed - Single Substation"}]
[null,null,{"$f":"'Electric Section'!C39","v":"Redundant"},{"$f":"VLOOKUP(C193,'Electric Section'!C39:$D$41,2,0)","v":"No"}]
[null,null,{"$f":"'Electric Section'!C40","v":"Provided a map indicating service to the site boundaries.  See the \"EX\" worksheet tabs."},{"$f":"VLOOKUP(C194,'Electric Section'!C40:$D$41,2,0)","v":"Yes"}]
[null,null,{"$f":"'Electric Section'!C41","v":"Provided signature below that confirms each response within this section is exactly as written."},{"$f":"VLOOKUP(C195,'Electric Section'!C41:$D$41,2,0)","v":"Yes"}]
[null,null,"Sewer Questions"]
[null,null,{"$f":"'Sewer Section'!C20","v":"Sewer line to the site boundaries"},{"$f":"VLOOKUP(C197,'Sewer Section'!C20:$D$37,2,0)","v":"No"}]
[null,null,{"$f":"'Sewer Section'!C21","v":"if no, distance in feet"},{"$f":"VLOOKUP(C198,'Sewer Section'!C21:$D$37,2,0)","v":0}]
[null,null,{"$f":"'Sewer Section'!C25","v":"Name of provider"},{"$f":"VLOOKUP(C199,'Sewer Section'!C25:$D$37,2,0)","v":0}]
[null,null,{"$f":"'Sewer Section'!C26","v":"name of utility contact representative providing information"},{"$f":"VLOOKUP(C200,'Sewer Section'!C26:$D$37,2,0)","v":0}]
[null,null,{"$f":"'Sewer Section'!C27","v":"title of person responding"},{"$f":"VLOOKUP(C201,'Sewer Section'!C27:$D$37,2,0)","v":0}]
[null,null,{"$f":"'Sewer Section'!C28","v":"contact phone number"},{"$f":"VLOOKUP(C202,'Sewer Section'!C28:$D$37,2,0)","v":0}]
[null,null,{"$f":"'Sewer Section'!C29","v":"contact email address"},{"$f":"VLOOKUP(C203,'Sewer Section'!C29:$D$37,2,0)","v":0}]
[null,null,{"$f":"'Sewer Section'!C30","v":"Size of line (inches) at the site boundaries"},{"$f":"VLOOKUP(C204,'Sewer Section'!C30:$D$37,2,0)","v":0}]
[null,null,{"$f":"'Sewer Section'!C31","v":"Existing total capacity in GPD/MGD (indicate which in comments) serving the site (not plant capacity)"},{"$f":"VLOOKUP(C205,'Sewer Section'!C31:$D$37,2,0)","v":0}]
[null,null,{"$f":"'Sewer Section'!C32","v":"Existing total excess capacity in GPD/MGD (indicate which in comments) serving the site (not plant capacity)"},{"$f":"VLOOKUP(C206,'Sewer Section'!C32:$D$37,2,0)","v":0}]
[null,null,{"$f":"'Sewer Section'!C36","v":"Provided a map indicating service to the site boundaries.  See the \"EX\" worksheet tabs."},{"$f":"VLOOKUP(C207,'Sewer Section'!C36:$D$37,2,0)","v":0}]
[null,null,{"$f":"'Sewer Section'!C37","v":"Provided signature below that confirms each response within this section is exactly as written."},{"$f":"VLOOKUP(C208,'Sewer Section'!C37:$D$37,2,0)","v":0}]
[null,null,"Natural Gas Questions"]
[null,null,{"$f":"'Natural Gas Section'!C20","v":"Natural gas line to the site boundaries"},{"$f":"VLOOKUP(C210,'Natural Gas Section'!C20:$D$38,2,0)","v":0}]
[null,null,{"$f":"'Natural Gas Section'!C21","v":"if no, distance in feet"},{"$f":"VLOOKUP(C211,'Natural Gas Section'!C21:$D$38,2,0)","v":0}]
[null,null,{"$f":"'Natural Gas Section'!C25","v":"Name of provider"},{"$f":"VLOOKUP(C212,'Natural Gas Section'!C25:$D$38,2,0)","v":0}]
[null,null,{"$f":"'Natural Gas Section'!C26","v":"name of utility contact representative providing information"},{"$f":"VLOOKUP(C213,'Natural Gas Section'!C26:$D$38,2,0)","v":0}]
[null,null,{"$f":"'Natural Gas Section'!C27","v":"title of person responding"},{"$f":"VLOOKUP(C214,'Natural Gas Section'!C27:$D$38,2,0)","v":0},""]
[null,null,{"$f":"'Natural Gas Section'!C28","v":"contact phone number"},{"$f":"VLOOKUP(C215,'Natural Gas Section'!C28:$D$38,2,0)","v":0}]
[null,null,{"$f":"'Natural Gas Section'!C29","v":"contact email address"},{"$f":"VLOOKUP(C216,'Natural Gas Section'!C29:$D$38,2,0)","v":0}]
[null,null,{"$f":"'Natural Gas Section'!C30","v":"Size of line at the site boundaries"},{"$f":"VLOOKUP(C217,'Natural Gas Section'!C30:$D$38,2,0)","v":0}]
[null,null,{"$f":"'Natural Gas Section'!C31","v":"Current available PSI (#) at the site boundaries "},{"$f":"VLOOKUP(C218,'Natural Gas Section'!C31:$D$38,2,0)","v":0}]
[null,null,{"$f":"'Natural Gas Section'!C32","v":"Existing distribution-level capacity at the site boundaries (must provide in MCF/Hour)"},{"$f":"VLOOKUP(C219,'Natural Gas Section'!C32:$D$38,2,0)","v":0}]
[null,null,{"$f":"'Natural Gas Section'!C36","v":"Existing transmission-level service available \nat the site boundaries. \nIf yes, must indicate in MCF/HOUR in comments."},{"$f":"VLOOKUP(C220,'Natural Gas Section'!C36:$D$38,2,0)","v":0}]
[null,null,{"$f":"'Natural Gas Section'!C37","v":"Provided a map indicating service to the site boundaries.  See the \"EX\" worksheet tabs."},{"$f":"VLOOKUP(C221,'Natural Gas Section'!C37:$D$38,2,0)","v":0}]
[null,null,{"$f":"'Natural Gas Section'!C38","v":"Provided signature below that confirms each response within this section is exactly as written."},{"$f":"VLOOKUP(C222,'Natural Gas Section'!C38:$D$38,2,0)","v":0}]
[null,null,"Fiber Questions"]
[null,null,{"$f":"'Fiber Section'!C20","v":"Fiber to the site boundaries"},{"$f":"VLOOKUP(C224,'Fiber Section'!C20:$D$32,2,0)","v":"No"}]
[null,null,{"$f":"'Fiber Section'!C21","v":"if no, distance in feet"},{"$f":"VLOOKUP(C225,'Fiber Section'!C21:$D$32,2,0)","v":22838}]
[null,null,{"$f":"'Fiber Section'!C25","v":"Name of provider"},{"$f":"VLOOKUP(C226,'Fiber Section'!C25:$D$32,2,0)","v":"Visionary Broadband"}]
[null,null,{"$f":"'Fiber Section'!C26","v":"name of utility contact representative providing information"},{"$f":"VLOOKUP(C227,'Fiber Section'!C26:$D$32,2,0)","v":"Brian Worthen"}]
[null,null,{"$f":"'Fiber Section'!C27","v":"title of person responding"},{"$f":"VLOOKUP(C228,'Fiber Section'!C27:$D$32,2,0)","v":"Business Development"}]
[null,null,{"$f":"'Fiber Section'!C28","v":"contact phone number"},{"$f":"VLOOKUP(C229,'Fiber Section'!C28:$D$32,2,0)","v":"307.685.5555"}]
[null,null,{"$f":"'Fiber Section'!C29","v":"contact email address"},{"$f":"VLOOKUP(C230,'Fiber Section'!C29:$D$32,2,0)","v":"bworthen@visionarybroadband.com"}]
[null,null,{"$f":"'Fiber Section'!C30","v":"Describe fiber service capacity (amount/size) \nto the site boundaries"},{"$f":"VLOOKUP(C231,'Fiber Section'!C30:$D$32,2,0)","v":"288 count fiber to Sout of property boundary, in the format of a ring.  Dark, active and XGS-PON available."}]
[null,null,{"$f":"'Fiber Section'!C31","v":"Provided a map indicating service to the site boundaries.  See the \"EX\" worksheet tabs."},{"$f":"VLOOKUP(C232,'Fiber Section'!C31:$D$32,2,0)","v":"Yes"}]
[null,null,{"$f":"'Fiber Section'!C32","v":"Provided signature below that confirms each response within this section is exactly as written."},{"$f":"VLOOKUP(C233,'Fiber Section'!C32:$D$32,2,0)","v":0}]
[null,null,"Rail Questions"]
[null,null,{"$f":"'Rail Section'!C20","v":"Rail service to the site boundaries"},{"$f":"VLOOKUP(C235,'Rail Section'!C20:$D$44,2,0)","v":"Yes"}]
[null,null,{"$f":"'Rail Section'!C25","v":"Existing rail spur to the site boundary"},{"$f":"VLOOKUP(C236,'Rail Section'!C25:$D$44,2,0)","v":"Yes"}]
[null,null,{"$f":"'Rail Section'!C27","v":"if no, can a spur be built to the site?"},{"$f":"VLOOKUP(C237,'Rail Section'!C27:$D$44,2,0)","v":0}]
[null,null,{"$f":"'Rail Section'!C26","v":"if yes, attached conceptual of rail spur into the site"},{"$f":"VLOOKUP(C238,'Rail Section'!C26:$D$44,2,0)","v":0}]
[null,null,{"$f":"'Rail Section'!C21","v":"if no rail service, how far from site/park boundaries (indicate distance in feet or miles in comments)?"},{"$f":"VLOOKUP(C239,'Rail Section'!C21:$D$44,2,0)","v":0}]
[null,null,{"$f":"'Rail Section'!C30","v":"List all rail providers serving the site/park, indicating in parentheses after each if it is a Class I or Class II provider"},{"$f":"VLOOKUP(C240,'Rail Section'!C30:$D$44,2,0)","v":"BNSF"}]
[null,null,{"$f":"'Rail Section'!C31","v":"name of utility contact representative providing information"},{"$f":"VLOOKUP(C241,'Rail Section'!C31:$D$44,2,0)","v":0}]
[null,null,{"$f":"'Rail Section'!C32","v":"title of person responding"},{"$f":"VLOOKUP(C242,'Rail Section'!C32:$D$44,2,0)","v":0}]
[null,null,{"$f":"'Rail Section'!C33","v":"contact phone number"},{"$f":"VLOOKUP(C243,'Rail Section'!C33:$D$44,2,0)","v":0}]
[null,null,{"$f":"'Rail Section'!C34","v":"contact email address"},{"$f":"VLOOKUP(C244,'Rail Section'!C34:$D$44,2,0)","v":0}]
[null,null,{"$f":"'Rail Section'!C35","v":"Are there multiple rail providers serving the \nsite/park boundaries?"},{"$f":"VLOOKUP(C245,'Rail Section'!C35:$D$44,2,0)","v":"No"}]
[null,null,{"$f":"'Rail Section'!C36","v":"is the site/park served by a Class I or Class II provider?"},{"$f":"VLOOKUP(C246,'Rail Section'!C36:$D$44,2,0)","v":"Class I"}]
[null,null,{"$f":"'Rail Section'!C37","v":"if Class I, are there multiple Class I providers serving the site/park?"},{"$f":"VLOOKUP(C247,'Rail Section'!C37:$D$44,2,0)","v":"No"}]
[null,null,{"$f":"'Rail Section'!C38","v":"if Class II, does it connect to multiple Class I providers?"},{"$f":"VLOOKUP(C248,'Rail Section'!C38:$D$44,2,0)","v":0}]
[null,null,{"$f":"'Rail Section'!C39","v":"Indicate number of trains capable of serving the \nsite/park per week"},{"$f":"VLOOKUP(C249,'Rail Section'!C39:$D$44,2,0)","v":0}]
[null,null,{"$f":"'Rail Section'!C40","v":"Indicate number of trains currently serving the \nsite/park per week"},{"$f":"VLOOKUP(C250,'Rail Section'!C40:$D$44,2,0)","v":0}]
[null,null,{"$f":"'Rail Section'!C41","v":"Distance to nearest rail storage yard (miles)"},{"$f":"VLOOKUP(C251,'Rail Section'!C41:$D$44,2,0)","v":0}]
[null,null,{"$f":"'Rail Section'!C42","v":"Rail carrier days of service per year"},{"$f":"VLOOKUP(C252,'Rail Section'!C42:$D$44,2,0)","v":0}]
[null,null,{"$f":"'Rail Section'!C43","v":"Provided a map indicating where service is to the site boundaries."},{"$f":"VLOOKUP(C253,'Rail Section'!C43:$D$44,2,0)","v":0}]
[null,null,{"$f":"'Rail Section'!C44","v":"Provided signature below that confirms each response within this section is exactly as written."},{"$f":"VLOOKUP(C254,'Rail Section'!C44:$D$44,2,0)","v":0}]

{"sheet":"Local Response Team","index":3,"n_rows":25,"n_cols":4,"rows_kept":25,"cut":false,"hidden":false,"merged":[[25,2,25,4],[16,2,16,4],[7,3,7,4]]}
[]
[]
[null,null,"INSITE'S SITE AND COMMUNITY CLIENT READINESS PROGRAM"]
[null,null,"InSite's Site Selection Data Template to Compile Site Specs"]
[null,null,"Stand-Alone Site and/or Industrial Park Site(s):  Referenced as \"Site\" in Document"]
[null,null,"LEDO Input Data Template"]
[null,null,"© 2022 InSite LLC: Confidential and Proprietary Property of InSite, LLC. The data template will remain in its original condition (formatting, spelling, etc.) as submitted to InSite."]
[null,null,"Name of Stand-Alone Site or Industrial Park Submission","Fort Union Industrial Park"]
[null,null,"Is this Site Submission.....",{"$f":"'Start Instructions'!$D$9","v":"An Industrial Park Site"}]
[null,null,"Largest, contiguous, developable acreage (CDA) of site submission. See \"EX\" worksheet tabs.",{"$f":"'Start Instructions'!D10","v":460}]
[null,null,"Submission street/physical address",{"$f":"'Start Instructions'!$D$11","v":"3574 N. Garner Lake Rd"}]
[null,null,"city",{"$f":"'Start Instructions'!$D$12","v":"Gillette"}]
[null,null,"county",{"$f":"'Start Instructions'!$D$13","v":"Campbell"}]
[null,null,"state",{"$f":"'Start Instructions'!$D$14","v":"WY"}]
[null,null,"zip code",{"$f":"'Start Instructions'!$D$15","v":82716}]
[null,null,"GPS Coordinates",{"$f":"'Start Instructions'!$D$16","v":"44.354032988369234, -105.4208611010569"}]
[null,null,"INDICATE THAT THE LOCAL ECONOMIC DEVELOPMENT RESPONSE TEAM \nHAS BEEN ASSEMBLED"]
[null,null,"Local Economic Development Staff","Yes"]
[null,null,"Property Owner","Yes"]
[null,null,"Electric Provider","Yes"]
[null,null,"Water Provider","Yes"]
[null,null,"Sewer Provider","Yes"]
[null,null,"Natural Gas Provider","Yes"]
[null,null,"Fiber Provider","Yes"]
[null,null,"Rail Provider","No"]

{"sheet":"LEDO Site Section","index":4,"n_rows":98,"n_cols":5,"rows_kept":98,"cut":false,"hidden":false,"merged":[[6,2,6,4],[7,2,8,2],[7,3,8,3],[9,3,9,4]]}
[]
[null,null,"INSITE'S SITE AND COMMUNITY CLIENT READINESS PROGRAM"]
[null,null,"InSite's Site Selection Data Template to Compile Site Specs"]
[null,null,"Stand-Alone Site and/or Industrial Park Site(s):  Referenced as \"Site\" in Document"]
[null,null,"LEDO Input Data Template"]
[null,null,"© 2022 InSite LLC: Confidential and Proprietary Property of InSite, LLC. The data template will remain in its original condition (formatting, spelling, etc.) as submitted to InSite."]
[null,null,"\"Designed For Currently\" Site Specs/Data Input Template"]
[null,null,"Criteria","Data/Response \nthis Column Only","Comments only in Gray Cells"]
[null,null,null,null,"Blue cells do not require data entry."]
[null,null,"Name of Stand-Alone Site or Industrial Park Submission",{"$f":"'Start Instructions'!$D$8","v":"Fort Union Industrial Park"}]
[null,null,"Is this Site Submission.....",{"$f":"'Start Instructions'!$D$9","v":"An Industrial Park Site"}]
[null,null,"Largest, contiguous, developable acreage (CDA) of site submission. See \"EX\" worksheet tabs.",{"$f":"'Start Instructions'!$D$10","v":460}]
[null,null,"Submission street/physical address",{"$f":"'Start Instructions'!$D$11","v":"3574 N. Garner Lake Rd"}]
[null,null,"city",{"$f":"'Start Instructions'!$D$12","v":"Gillette"}]
[null,null,"county",{"$f":"'Start Instructions'!$D$13","v":"Campbell"}]
[null,null,"state",{"$f":"'Start Instructions'!$D$14","v":"WY"}]
[null,null,"zip code",{"$f":"'Start Instructions'!$D$15","v":82716}]
[null,null,"GPS Coordinates",{"$f":"'Start Instructions'!$D$16","v":"44.354032988369234, -105.4208611010569"}]
[null,null,"LOCAL ECONOMIC DEVELOPMENT ORGANIZATION (LEDO) SECTION (to Include Owner Input)"]
[null,null,"Total available acreage of site",1200]
[null,null,"minimum acreage owner is willing to subdivide",25]
[null,null,"Publicly owned (LEDO, Community, Industrial Authority, etc.)? Put name(s) in comments.","No","Privately held"]
[null,null,"number of owners (list names in comments)",1,"Greenbridge Holdings"]
[null,null,"Is there additional acreage available contiguous to the site boundaries that could be potential for expansion of site?  Provide estimated number of additional acres in comments.","No"]
[null,null,"If an industrial park site submission, number of additional, available sites in the park.  List their respective CDAs in the comments section.  \nSee EX IND PARK MAP CDA worksheet tab.",4]
[null,null,"Name of entity responding to this data template","Energy Capital Economic Development"]
[null,null,"full name of person responding","Phil Christopherson"]
[null,null,"title of person responding","CEO"]
[null,null,"contact phone number","307 686-2603"]
[null,null,"contact email address","phil@EnergyCapitalED.com"]
[null,null,"Who is the Lead, Local Economic Development Agency (LEDO)?","Energy Capital Economic Development"]
[null,null,"Name of LEDO Director/CEO Contact?","Phil Christopherson"]
[null,null,"contact phone number","307 686-2603"]
[null,null,"contact email address","phil@EnergyCapitalED.com"]
[null,null,"Is there evidence of existing sink holes, natural springs, etc.? If yes, describe where in comments.","No"]
[null,null,"Identify any easement and rights-of-way on the \nstand-alone site/within industrial park site(s), and list the ownership of each","Subdivision plat available showing multple easements on the property"]
[null,null,"Describe current use","Industrial Park"]
[null,null,"Describe former use","Industrial site for adjacent coal mine"]
[null,null,"Zoned industrial","Yes"]
[null,null,"if no, define possibility and length of process for rezoning"]
[null,null,"provided a legal definition of zoning code and zoning map to include site boundaries as a separate attachment and with this submission","Yes"]
[null,null,"Are there written and recorded covenants with the deed for the site submission to include a list of protective, restricted uses? ","Yes"]
[null,null,"if no, willingness to record new or amend existing covenants with the provided restricted uses.  \nIf not willing, explain in comments."]
[null,null,"Link to Example of Covenants and Restricted Uses"]
[null,null,"Describe surrounding uses","Agricultural"]
[null,null,"adjacent to other manufacturing operations/facilities","No"]
[null,null,"Have a simple, site(s) layout boundary map with maximum, contiguous, developable acreage, and include the maximum square footage of a building footprint on the site's developable acreage.  \n*Or a simple industrial park layout boundary map with site(s) shown per maximum, contiguous, developable acreage as site boundaries and lot lines, and include the maximum square footage of a building footprint on each site's developable acreage.","Yes"]
[null,null,"if yes, provided site plan/layout as a separate attachment and with this submission"]
[null,null,"Link to Example Site Plan"]
[null,null,"Number of years site has been available (existence)",10]
[null,null,"number of years site has been vacant",15]
[null,null,"number of companies in the industrial park, as applicable",3]
[null,null,"number of most recent announcement(s). In comments list company, year, jobs, investment.",0]
[null,null,"Distance in miles from subdivision/dense residential (describe type of residential in comments)",4,"Straight line distance to closest residential neighborhood"]
[null,null,"distance in miles from schools",5,"Lakeview Elementary School"]
[null,null,"distance in miles from public park",5,"Heritage Village Park"]
[null,null,"distance in miles from retirement centers",6.6,"Primrose Retirement Community"]
[null,null,"distance in miles from correctional facilities",7,"Campbell County Jail"]
[null,null,"distance in miles from cemeteries \n(note in comments - small, medium, or large cemetery)",6.14,"Mt. Pisgah Cemetery"]
[null,null,"Is the site in a 100-year flood plain?  Partially would be answered yes.  If submitting multiple industrial park sites, note site number(s) in the comments.","No"]
[null,null,"where is the location of the flood plain on the site? \n(i.e. Northwest corner). If submitting multiple industrial park sites, note in comments the additional site number(s) and location."]
[null,null,"what is the percentage of the site(s) in the floodplain? If submitting multiple industrial park sites, note in comments the site number and percent in floodplain."]
[null,null,"are there any areas with bodies of water, creeks, wetlands, etc. that impact the constructible, developable acreage of the site? (if yes, note how many acres per site and location in comments)?","No"]
[null,null,"provided a 100-year FEMA flood plain map, to include the site boundaries, as a separate attachment and with this submission",null,"Not in a flood plain"]
[null,null,"Describe general site configuration.   If submitting multiple industrial park sites, note in comments the site number and configuration. \n(rectangular, square, L, etc.).","Rolling low hills"]
[null,null,"Are there any structures on the site that will impact constructability?  If yes, describe in comments.  \nIf submitting multiple industrial park sites, note in comments the site number and description.","No"]
[null,null,"Indicate the terrain of the site.  If submitting multiple industrial park sites, note in comments the site number and terrain. (flat, gently rolling, challenging).","low rolling hills"]
[null,null,"what is the percent slope of the site? Determine by using a topography map.  Change of elevation divided by the distance. If submitting multiple industrial park sites, note in comments the site number and percent.",0.03]
[null,null,"Describe the soil type (sandy, clay, etc.). If submitting multiple industrial park sites, note in comments the site number and type.","thin layers of top soil over scoria "]
[null,null,"Is there a graded pad on the site?  If yes, indicate square footage for building footprint in comments.  If submitting multiple industrial park sites, note in comments the site number, yes or no and building footprint square footage.","No"]
[null,null,"Is the site easily accessible? If no, describe impediments.","Yes"]
[null,null,"are there industrial quality roads/truck routes free from weight or height restrictions providing access to the property? (if no, describe in comments).","Yes"]
[null,null,"number of roads accessing the site",2]
[null,null,"describe any road access improvements necessary","Roads are currently gravel, "]
[null,null,"distance in miles or feet (indicate in comments) to major 4-lane highway and/or interstate (include names in comments)",4.2,"Interstate 90"]
[null,null,"is access to the site controlled by a traffic light?","No"]
[null,null,"Can the site be viewed from the highway/interstate?","Yes"]
[null,null,"GENERAL TRANSPORTATION SECTION"]
[null,null,"Distance in miles to the nearest commercial airport",5]
[null,null,"name of nearest commercial airport","NE Wyoming Regional Airport"]
[null,null,"Distance in miles to the nearest port",680]
[null,null,"type of port","Lake","Lake Superior"]
[null,null,"name of port","Port of Duluth-Superior"]
[null,null,"ECONOMIC DEVELOPMENT ORGANIZATION INFORMATION SECTION"]
[null,null,"Type of organization (public; private; public/private; chamber; city; county; etc.)","Private 501 c6"]
[null,null,"Department responsible for Economic Development","Energy Capital Economic Development"]
[null,null,"Title of person responsible for \nEconomic Development","Chief Executive Officer"]
[null,null,"Total budget amount allocated solely to \nEconomic Development",450000]
[null,null,"Percentage of public funding",0.66]
[null,null,"Percentage of private funding",0.33]
[null,null,"Number of full-time staff that is dedicated solely to economic development",3]
[null,null,"Number of part-time economic development staff",0]
[null,null,"All staff proficient in Microsoft Office Suite \n(Word, Excel, PowerPoint, Outlook)","Yes"]
[null,null,"OTHER INFORMATION SECTION"]
[null,null,"Regional population (45-mile radius \ncommuting pattern)",47026,"From 2020 census for Campbell County, Wyoming, "]
[null,null,"Regional workforce (45-mile radius commuting pattern)",23600,"From 2020 census for Campbell County, Wyoming, "]
[null,null,"Does your city and/or county have incentive guidelines/thresholds that have been approved by the local, governing body?","No"]
[null,null,"does your city and/or county have incentive guidelines/thresholds that have been approved by the local, governing body that are specific to the site?","No"]

{"sheet":"Owner Site Section","index":5,"n_rows":47,"n_cols":5,"rows_kept":47,"cut":false,"hidden":false,"merged":[[6,2,6,4],[7,2,8,2],[7,3,8,3],[9,3,9,4]]}
[]
[null,null,"INSITE'S SITE AND COMMUNITY CLIENT READINESS PROGRAM"]
[null,null,"InSite's Site Selection Data Template to Compile Site Specs"]
[null,null,"Stand-Alone Site and/or Industrial Park Site(s):  Referenced as \"Site\" in Document"]
[null,null,"LEDO Input Data Template"]
[null,null,"© 2022 InSite LLC: Confidential and Proprietary Property of InSite, LLC. The data template will remain in its original condition (formatting, spelling, etc.) as submitted to InSite."]
[null,null,"\"Designed For Currently\" Site Specs/Data Input Template"]
[null,null,"Criteria","Data/Response \nthis Column Only","Comments only in Gray Cells"]
[null,null,null,null,"Blue cells do not require data entry."]
[null,null,"Name of Stand-Alone Site or Industrial Park Submission",{"$f":"'Start Instructions'!D8","v":"Fort Union Industrial Park"}]
[null,null,"Is this Site Submission.....",{"$f":"'Start Instructions'!D9","v":"An Industrial Park Site"}]
[null,null,"Largest, contiguous, developable acreage (CDA) of site submission. See \"EX\" worksheet tabs.",{"$f":"'Start Instructions'!D10","v":460}]
[null,null,"Submission street/physical address",{"$f":"'Start Instructions'!$D$11","v":"3574 N. Garner Lake Rd"}]
[null,null,"city",{"$f":"'Start Instructions'!$D$12","v":"Gillette"}]
[null,null,"county",{"$f":"'Start Instructions'!$D$13","v":"Campbell"}]
[null,null,"state",{"$f":"'Start Instructions'!$D$14","v":"WY"}]
[null,null,"zip code",{"$f":"'Start Instructions'!$D$15","v":82716}]
[null,null,"GPS Coordinates",{"$f":"'Start Instructions'!$D$16","v":"44.354032988369234, -105.4208611010569"}]
[null,null,"OWNER(S) SECTION TO BE CONFIRMED WITH SIGNATURE(S) BELOW"]
[null,null,"Primary Ownership Contact Information:"]
[null,null,"full name","Jim Ford"]
[null,null,"company","Greenbridge Holdings"]
[null,null,"title","Property Manager"]
[null,null,"email address","jim.ford@vcn.com"]
[null,null,"cell phone number","307 680-3445"]
[null,null,"Is the property for sale or lease?","Sale"]
[null,null,"Is (are) the owner(s) motivated to sell?","Yes"]
[null,null,"Documented price/acre or price/square foot.  Indicate per acre or sq.ft. in comments.",60000,"per acre"]
[null,null,"Date available (if cell input does not function correctly, input date into comments)","1-1-2010"]
[null,null,"Are there separately owned mineral rights with this site (oil, natural gas, coal, etc.) submission? If yes, describe types of minerals in comments.","Yes"]
[null,null,"if yes, who owns the mineral rights?","Unknown","Federal or State most likely"]
[null,null,"if yes, provided a confirmation signature below from mineral rights ownership(s) of willingness to transfer or conveyance of those rights to the purchaser at no cost.  ",null,"Mineral rights are extreemly difficult to obtain in Wyoming"]
[null,null,"if no mineral rights, provided a confirmation signature below from mineral rights ownership(s) stating there are no mineral rights associated with the property.  "]
[]
[null,null,"Provider Confirmation of Accurate Information"]
[null,null,"I confirm the above information is accurate as of …...........................",null," (INSERT CURRENT DATE and TIME HERE)"]
[null,null,"Insert Site Owner(s) Signature on Line Below:"]
[]
[]
[]
[]
[null,null,"Insert Site Owner(s) Signature on Line Below Stating There are No Mineral Rights Associated with this Property:"]
[]
[]
[]
[]
[null,null,"Insert Mineral Rights Owner(s) Signature on Line Below Stating Mineral Rights Transfer with Property Transaction:"]

{"sheet":"Electric Section","index":6,"n_rows":48,"n_cols":5,"rows_kept":48,"cut":false,"hidden":false,"merged":[[6,2,6,4],[7,2,8,2],[7,3,8,3],[9,3,9,4]]}
[]
[null,null,"INSITE'S SITE AND COMMUNITY CLIENT READINESS PROGRAM"]
[null,null,"InSite's Site Selection Data Template to Compile Site Specs"]
[null,null,"Stand-Alone Site and/or Industrial Park Site(s):  Referenced as \"Site\" in Document"]
[null,null,"LEDO Input Data Template"]
[null,null,"© 2022 InSite LLC: Confidential and Proprietary Property of InSite, LLC. The data template will remain in its original condition (formatting, spelling, etc.) as submitted to InSite."]
[null,null,"\"Designed For Currently\" Site Specs/Data Input Template"]
[null,null,"Criteria","Data/Response \nthis Column Only","Comments only in Gray Cells"]
[null,null,null,null,"Blue cells do not require data entry."]
[null,null,"Name of Stand-Alone Site or Industrial Park Submission",{"$f":"'Start Instructions'!D8","v":"Fort Union Industrial Park"}]
[null,null,"Is this Site Submission.....",{"$f":"'Start Instructions'!$D$9","v":"An Industrial Park Site"}]
[null,null,"Largest, contiguous, developable acreage (CDA) of site submission. See \"EX\" worksheet tabs.",{"$f":"'Start Instructions'!$D$10","v":460}]
[null,null,"Submission street/physical address",{"$f":"'Start Instructions'!$D$11","v":"3574 N. Garner Lake Rd"}]
[null,null,"city",{"$f":"'Start Instructions'!$D$12","v":"Gillette"}]
[null,null,"county",{"$f":"'Start Instructions'!$D$13","v":"Campbell"}]
[null,null,"state",{"$f":"'Start Instructions'!$D$14","v":"WY"}]
[null,null,"zip code",{"$f":"'Start Instructions'!$D$15","v":82716}]
[null,null,"GPS Coordinates",{"$f":"'Start Instructions'!$D$16","v":"44.354032988369234, -105.4208611010569"}]
[null,null,"ELECTRIC SYSTEM SECTION"]
[null,null,"Electric lines are to the site boundaries","Yes"]
[null,null,"if no, distance in feet"]
[null,null,"estimated cost to extend"]
[null,null,"estimated time to extend (indicate days, months, years in comments)"]
[null,null,"is funding currently available for extension"]
[null,null,"Name of provider","Powder River Energy Coporation"]
[null,null,"name of utility contact representative providing information","Taylor Johnson"]
[null,null,"title of person responding","System Engineer"]
[null,null,"contact phone number","307-680-0096"]
[null,null,"contact email address","taylorj@precorp.coop"]
[null,null,"Size of line(s) at the site boundaries","2/0, 4/0"]
[null,null,"Existing distribution-level capacity at the \nsite boundaries (must provide in MW)",4.5]
[null,null,"cost to expand to 10 MW","$2 million"]
[null,null,"estimated time to expand (indicate days, months, years in comments)","18 months"]
[null,null,"is funding currently available for expansion","Yes"]
[null,null,"Response Optional:\nIs transmission-level service available at the \nsite boundaries?","No","69 kV transmission level available approximately 1 mile away"]
[null,null,"Response Optional:\nProvide approximate transmission-level service capacity.  Indicate in the comments section whether the number is in MW (preferred) or voltage.",0]
[null,null,"Distance in miles to substation serving the \nsite boundaries",0.85]
[null,null,"Type of feed","Dual Feed - Single Substation"]
[null,null,"Redundant","No"]
[null,null,"Provided a map indicating service to the site boundaries.  See the \"EX\" worksheet tabs.","Yes"]
[null,null,"Provided signature below that confirms each response within this section is exactly as written.","Yes"]
[]
[null,null,"Provider Confirmation of Accurate Information"]
[]
[null,null,"I confirm the above information is accurate as of …..........................."]
[null,null,"Utility capacities are subject to change over time. "]
[]
[null,null,"Insert Electric Provider Signature on Line Below:"]

{"sheet":"Water Section","index":7,"n_rows":44,"n_cols":5,"rows_kept":44,"cut":false,"hidden":false,"merged":[[6,2,6,4],[7,2,8,2],[7,3,8,3],[9,3,9,4]]}
[]
[null,null,"INSITE'S SITE AND COMMUNITY CLIENT READINESS PROGRAM"]
[null,null,"InSite's Site Selection Data Template to Compile Site Specs"]
[null,null,"Stand-Alone Site and/or Industrial Park Site(s):  Referenced as \"Site\" in Document"]
[null,null,"LEDO Input Data Template"]
[null,null,"© 2022 InSite LLC: Confidential and Proprietary Property of InSite, LLC. The data template will remain in its original condition (formatting, spelling, etc.) as submitted to InSite."]
[null,null,"\"Designed For Currently\" Site Specs/Data Input Template"]
[null,null,"Criteria","Data/Response \nthis Column Only","Comments only in Gray Cells"]
[null,null,null,null,"Blue cells do not require data entry."]
[null,null,"Name of Stand-Alone Site or Industrial Park Submission",{"$f":"'Start Instructions'!D8","v":"Fort Union Industrial Park"}]
[null,null,"Is this Site Submission.....",{"$f":"'Start Instructions'!$D$9","v":"An Industrial Park Site"}]
[null,null,"Largest, contiguous, developable acreage (CDA) of site submission. See \"EX\" worksheet tabs.",{"$f":"'Start Instructions'!$D$10","v":460}]
[null,null,"Submission street/physical address",{"$f":"'Start Instructions'!$D$11","v":"3574 N. Garner Lake Rd"}]
[null,null,"city",{"$f":"'Start Instructions'!$D$12","v":"Gillette"}]
[null,null,"county",{"$f":"'Start Instructions'!$D$13","v":"Campbell"}]
[null,null,"state",{"$f":"'Start Instructions'!$D$14","v":"WY"}]
[null,null,"zip code",{"$f":"'Start Instructions'!$D$15","v":82716}]
[null,null,"GPS Coordinates",{"$f":"'Start Instructions'!$D$16","v":"44.354032988369234, -105.4208611010569"}]
[null,null,"WATER SYSTEM SECTION"]
[null,null,"Water line is to the site boundaries","No","Entire site is well fed"]
[null,null,"if no, distance in feet",null,"well is required"]
[null,null,"estimated cost to extend"]
[null,null,"estimated time to extend (indicate days, months, years in comments)"]
[null,null,"is funding currently available for extension"]
[null,null,"Name of provider"]
[null,null,"name of utility contact representative providing information"]
[null,null,"title of person responding"]
[null,null,"contact phone number"]
[null,null,"contact email address"]
[null,null,"Size of line (inches) at the site boundaries"]
[null,null,"Existing total capacity in GPD/MGD (indicate which in comments) serving the site (not plant capacity)"]
[null,null,"Existing total excess capacity in GPD/MGD (indicate which in comments) serving the site (not plant capacity)"]
[null,null,"if excess capacity to the site is below 200,000 gpd, cost to expand in 100,000 gpd increments"]
[null,null,"estimated time to expand (indicate days, months, years in comments)"]
[null,null,"is funding currently available for expansion"]
[null,null,"Provided a map indicating service to the site boundaries.  See the \"EX\" worksheet tabs."]
[null,null,"Provided signature below that confirms each response within this section is exactly as written."]
[]
[null,null,"Provider Confirmation of Accurate Information"]
[]
[null,null,"I confirm the above information is accurate as of …...........................",null," (INSERT CURRENT DATE and TIME HERE)"]
[null,null,"Utility capacities are subject to change over time. "]
[]
[null,null,"Insert Water Provider Signature on Line Below:"]

{"sheet":"Sewer Section","index":8,"n_rows":60,"n_cols":5,"rows_kept":60,"cut":false,"hidden":false,"merged":[[6,2,6,4],[7,2,8,2],[7,3,8,3],[9,3,9,4]]}
[]
[null,null,"INSITE'S SITE AND COMMUNITY CLIENT READINESS PROGRAM"]
[null,null,"InSite's Site Selection Data Template to Compile Site Specs"]
[null,null,"Stand-Alone Site and/or Industrial Park Site(s):  Referenced as \"Site\" in Document"]
[null,null,"LEDO Input Data Template"]
[null,null,"© 2022 InSite LLC: Confidential and Proprietary Property of InSite, LLC. The data template will remain in its original condition (formatting, spelling, etc.) as submitted to InSite."]
[null,null,"\"Designed For Currently\" Site Specs/Data Input Template"]
[null,null,"Criteria","Data/Response \nthis Column Only","Comments only in Gray Cells"]
[null,null,null,null,"Blue cells do not require data entry."]
[null,null,"Name of Stand-Alone Site or Industrial Park Submission",{"$f":"'Start Instructions'!D8","v":"Fort Union Industrial Park"}]
[null,null,"Is this Site Submission.....",{"$f":"'Start Instructions'!$D$9","v":"An Industrial Park Site"}]
[null,null,"Largest, contiguous, developable acreage (CDA) of site submission. See \"EX\" worksheet tabs.",{"$f":"'Start Instructions'!$D$10","v":460}]
[null,null,"Submission street/physical address",{"$f":"'Start Instructions'!$D$11","v":"3574 N. Garner Lake Rd"}]
[null,null,"city",{"$f":"'Start Instructions'!$D$12","v":"Gillette"}]
[null,null,"county",{"$f":"'Start Instructions'!$D$13","v":"Campbell"}]
[null,null,"state",{"$f":"'Start Instructions'!$D$14","v":"WY"}]
[null,null,"zip code",{"$f":"'Start Instructions'!$D$15","v":82716}]
[null,null,"GPS Coordinates",{"$f":"'Start Instructions'!$D$16","v":"44.354032988369234, -105.4208611010569"}]
[null,null,"SEWER SYSTEM SECTION"]
[null,null,"Sewer line to the site boundaries","No","All sites are on septic systems"]
[null,null,"if no, distance in feet"]
[null,null,"estimated cost to extend"]
[null,null,"estimated time to extend (indicate days, months, years in comments)"]
[null,null,"is funding currently available for extension"]
[null,null,"Name of provider"]
[null,null,"name of utility contact representative providing information"]
[null,null,"title of person responding"]
[null,null,"contact phone number"]
[null,null,"contact email address"]
[null,null,"Size of line (inches) at the site boundaries"]
[null,null,"Existing total capacity in GPD/MGD (indicate which in comments) serving the site (not plant capacity)"]
[null,null,"Existing total excess capacity in GPD/MGD (indicate which in comments) serving the site (not plant capacity)"]
[null,null,"if excess capacity to the site is below 200,000 gpd, cost to expand in 100,000 gpd increments"]
[null,null,"estimated time to expand (indicate days, months, years in comments)"]
[null,null,"is funding currently available for expansion"]
[null,null,"Provided a map indicating service to the site boundaries.  See the \"EX\" worksheet tabs."]
[null,null,"Provided signature below that confirms each response within this section is exactly as written."]
[null,null,"if no, how far from site (indicate distance in feet or miles in comments)","3 miles",""]
[null,null,"List all rail providers serving the property, indicating in parentheses behind each if it is a Class I or Class II provider",""]
[null,null,"name of utility contact representative providing information",""]
[null,null,"title of person responding",""]
[null,null,"contact phone number",""]
[null,null,"contact email address",""]
[null,null,"Is there a rail spur to the site boundaries","No",""]
[null,null,"Are there multiple rail providers serving the site","",""]
[null,null,"is the park served by a Class I or Class II provider","",""]
[null,null,"if Class I, are there multiple Class I providers serving the site","",""]
[null,null,"if Class II, does it connect to multiple Class I providers","",""]
[null,null,"Indicate number of trains capable of serving the park or site per week","",""]
[null,null,"Indicate number of trains currently serving the park or site per week","",""]
[null,null,"Distance to nearest rail storage yard (miles)","",""]
[null,null,"Rail carrier days of service per year","",""]
[null,null,"Provided a letter in the identical format shown in submission workbook page \"Example Rail Letter\" from the rail provider(s), as a separate attachment and with this submission, that communicates in writing each response within this section exactly as written and responded. Copy and paste this completed section on provider company letterhead and have signed by utility company decision-maker.","Not Rail-Served",""]
[]
[null,null,"Provider Confirmation of Accurate Information"]
[]
[null,null,"I confirm the above information is accurate as of …...........................",null," (INSERT CURRENT DATE and TIME HERE)"]
[null,null,"Utility capacities are subject to change over time. "]
[]
[null,null,"Insert Sewer Provider Signature on Line Below:"]

{"sheet":"Natural Gas Section","index":9,"n_rows":45,"n_cols":5,"rows_kept":45,"cut":false,"hidden":false,"merged":[[6,2,6,4],[7,2,8,2],[7,3,8,3],[9,3,9,4]]}
[]
[null,null,"INSITE'S SITE AND COMMUNITY CLIENT READINESS PROGRAM"]
[null,null,"InSite's Site Selection Data Template to Compile Site Specs"]
[null,null,"Stand-Alone Site and/or Industrial Park Site(s):  Referenced as \"Site\" in Document"]
[null,null,"LEDO Input Data Template"]
[null,null,"© 2022 InSite LLC: Confidential and Proprietary Property of InSite, LLC. The data template will remain in its original condition (formatting, spelling, etc.) as submitted to InSite."]
[null,null,"\"Designed For Currently\" Site Specs/Data Input Template"]
[null,null,"Criteria","Data/Response \nthis Column Only","Comments only in Gray Cells"]
[null,null,null,null,"Blue cells do not require data entry."]
[null,null,"Name of Stand-Alone Site or Industrial Park Submission",{"$f":"'Start Instructions'!D8","v":"Fort Union Industrial Park"}]
[null,null,"Is this Site Submission.....",{"$f":"'Start Instructions'!$D$9","v":"An Industrial Park Site"}]
[null,null,"Largest, contiguous, developable acreage (CDA) of site submission. See \"EX\" worksheet tabs.",{"$f":"'Start Instructions'!$D$10","v":460}]
[null,null,"Submission street/physical address",{"$f":"'Start Instructions'!$D$11","v":"3574 N. Garner Lake Rd"}]
[null,null,"city",{"$f":"'Start Instructions'!$D$12","v":"Gillette"}]
[null,null,"county",{"$f":"'Start Instructions'!$D$13","v":"Campbell"}]
[null,null,"state",{"$f":"'Start Instructions'!$D$14","v":"WY"}]
[null,null,"zip code",{"$f":"'Start Instructions'!$D$15","v":82716}]
[null,null,"GPS Coordinates",{"$f":"'Start Instructions'!$D$16","v":"44.354032988369234, -105.4208611010569"}]
[null,null,"NATURAL GAS SECTION"]
[null,null,"Natural gas line to the site boundaries"]
[null,null,"if no, distance in feet"]
[null,null,"estimated cost to extend"]
[null,null,"estimated time to extend (indicate days, months, years in comments)"]
[null,null,"is funding currently available for extension"]
[null,null,"Name of provider"]
[null,null,"name of utility contact representative providing information"]
[null,null,"title of person responding"]
[null,null,"contact phone number"]
[null,null,"contact email address"]
[null,null,"Size of line at the site boundaries"]
[null,null,"Current available PSI (#) at the site boundaries "]
[null,null,"Existing distribution-level capacity at the site boundaries (must provide in MCF/Hour)"]
[null,null,"if excess capacity to the site is below 14 MCF/HR, cost to expand in 14 MCF/HR increments"]
[null,null,"estimated time to expand (indicate days, months, years in comments)"]
[null,null,"is funding currently available for expansion"]
[null,null,"Existing transmission-level service available \nat the site boundaries. \nIf yes, must indicate in MCF/HOUR in comments."]
[null,null,"Provided a map indicating service to the site boundaries.  See the \"EX\" worksheet tabs."]
[null,null,"Provided signature below that confirms each response within this section is exactly as written."]
[]
[null,null,"Provider Confirmation of Accurate Information"]
[]
[null,null,"I confirm the above information is accurate as of …...........................",null," (INSERT CURRENT DATE and TIME HERE)"]
[null,null,"Utility capacities are subject to change over time. "]
[]
[null,null,"Insert Natural Gas Provider Signature on Line Below:"]

{"sheet":"Fiber Section","index":10,"n_rows":40,"n_cols":5,"rows_kept":40,"cut":false,"hidden":false,"merged":[[6,2,6,4],[7,2,8,2],[7,3,8,3],[9,3,9,4]]}
[]
[null,null,"INSITE'S SITE AND COMMUNITY CLIENT READINESS PROGRAM"]
[null,null,"InSite's Site Selection Data Template to Compile Site Specs"]
[null,null,"Stand-Alone Site and/or Industrial Park Site(s):  Referenced as \"Site\" in Document"]
[null,null,"LEDO Input Data Template"]
[null,null,"© 2022 InSite LLC: Confidential and Proprietary Property of InSite, LLC. The data template will remain in its original condition (formatting, spelling, etc.) as submitted to InSite."]
[null,null,"\"Designed For Currently\" Site Specs/Data Input Template"]
[null,null,"Criteria","Data/Response \nthis Column Only","Comments only in Gray Cells"]
[null,null,null,null,"Blue cells do not require data entry."]
[null,null,"Name of Stand-Alone Site or Industrial Park Submission",{"$f":"'Start Instructions'!D8","v":"Fort Union Industrial Park"}]
[null,null,"Is this Site Submission.....",{"$f":"'Start Instructions'!$D$9","v":"An Industrial Park Site"}]
[null,null,"Largest, contiguous, developable acreage (CDA) of site submission. See \"EX\" worksheet tabs.",{"$f":"'Start Instructions'!$D$10","v":460}]
[null,null,"Submission street/physical address",{"$f":"'Start Instructions'!$D$11","v":"3574 N. Garner Lake Rd"}]
[null,null,"city",{"$f":"'Start Instructions'!$D$12","v":"Gillette"}]
[null,null,"county",{"$f":"'Start Instructions'!$D$13","v":"Campbell"}]
[null,null,"state",{"$f":"'Start Instructions'!$D$14","v":"WY"}]
[null,null,"zip code",{"$f":"'Start Instructions'!$D$15","v":82716}]
[null,null,"GPS Coordinates",{"$f":"'Start Instructions'!$D$16","v":"44.354032988369234, -105.4208611010569"}]
[null,null,"FIBER SECTION"]
[null,null,"Fiber to the site boundaries","No"]
[null,null,"if no, distance in feet",22838,"Feet"]
[null,null,"estimated cost to extend",315475]
[null,null,"estimated time to extend (indicate days, months, years in comments)",120,"120 days"]
[null,null,"is funding currently available for extension","Yes","Amortization available"]
[null,null,"Name of provider","Visionary Broadband"]
[null,null,"name of utility contact representative providing information","Brian Worthen"]
[null,null,"title of person responding","Business Development"]
[null,null,"contact phone number","307.685.5555"]
[null,null,"contact email address","bworthen@visionarybroadband.com"]
[null,null,"Describe fiber service capacity (amount/size) \nto the site boundaries","288 count fiber to Sout of property boundary, in the format of a ring.  Dark, active and XGS-PON available."]
[null,null,"Provided a map indicating service to the site boundaries.  See the \"EX\" worksheet tabs.","Yes"]
[null,null,"Provided signature below that confirms each response within this section is exactly as written."]
[]
[null,null,"Provider Confirmation of Accurate Information"]
[]
[null,null,"I confirm the above information is accurate as of …...........................",null,"Jan 19th, 2023 12:26 pm"]
[null,null,"Utility capacities are subject to change over time. "]
[]
[null,null,"Insert Fiber Provider Signature on Line Below:"]
[null,null,"Brian R Worthen, Visionary Broadband"]

{"sheet":"Rail Section","index":11,"n_rows":51,"n_cols":5,"rows_kept":51,"cut":false,"hidden":false,"merged":[[6,2,6,4],[7,2,8,2],[7,3,8,3],[9,3,9,4]]}
[]
[null,null,"INSITE'S SITE AND COMMUNITY CLIENT READINESS PROGRAM"]
[null,null,"InSite's Site Selection Data Template to Compile Site Specs"]
[null,null,"Stand-Alone Site and/or Industrial Park Site(s):  Referenced as \"Site\" in Document"]
[null,null,"LEDO Input Data Template"]
[null,null,"© 2022 InSite LLC: Confidential and Proprietary Property of InSite, LLC. The data template will remain in its original condition (formatting, spelling, etc.) as submitted to InSite."]
[null,null,"\"Designed For Currently\" Site Specs/Data Input Template"]
[null,null,"Criteria","Data/Response \nthis Column Only","Comments only in Gray Cells"]
[null,null,null,null,"Blue cells do not require data entry."]
[null,null,"Name of Stand-Alone Site or Industrial Park Submission",{"$f":"'Start Instructions'!D8","v":"Fort Union Industrial Park"}]
[null,null,"Is this Site Submission.....",{"$f":"'Start Instructions'!$D$9","v":"An Industrial Park Site"}]
[null,null,"Largest, contiguous, developable acreage (CDA) of site submission. See \"EX\" worksheet tabs.",{"$f":"'Start Instructions'!$D$10","v":460}]
[null,null,"Submission street/physical address",{"$f":"'Start Instructions'!$D$11","v":"3574 N. Garner Lake Rd"}]
[null,null,"city",{"$f":"'Start Instructions'!$D$12","v":"Gillette"}]
[null,null,"county",{"$f":"'Start Instructions'!$D$13","v":"Campbell"}]
[null,null,"state",{"$f":"'Start Instructions'!$D$14","v":"WY"}]
[null,null,"zip code",{"$f":"'Start Instructions'!$D$15","v":82716}]
[null,null,"GPS Coordinates",{"$f":"'Start Instructions'!$D$16","v":"44.354032988369234, -105.4208611010569"}]
[null,null,"RAIL SECTION"]
[null,null,"Rail service to the site boundaries","Yes"]
[null,null,"if no rail service, how far from site/park boundaries (indicate distance in feet or miles in comments)?"]
[null,null,"is it feasible to extend"]
[null,null,"estimated cost to extend"]
[null,null,"estimated time to extend (indicate days, months, years in comments)"]
[null,null,"Existing rail spur to the site boundary","Yes"]
[null,null,"if yes, attached conceptual of rail spur into the site"]
[null,null,"if no, can a spur be built to the site?"]
[null,null,"estimated cost to extend"]
[null,null,"estimated time to expand (indicate days, months, years in comments)"]
[null,null,"List all rail providers serving the site/park, indicating in parentheses after each if it is a Class I or Class II provider","BNSF"]
[null,null,"name of utility contact representative providing information"]
[null,null,"title of person responding"]
[null,null,"contact phone number"]
[null,null,"contact email address"]
[null,null,"Are there multiple rail providers serving the \nsite/park boundaries?","No"]
[null,null,"is the site/park served by a Class I or Class II provider?","Class I"]
[null,null,"if Class I, are there multiple Class I providers serving the site/park?","No"]
[null,null,"if Class II, does it connect to multiple Class I providers?"]
[null,null,"Indicate number of trains capable of serving the \nsite/park per week"]
[null,null,"Indicate number of trains currently serving the \nsite/park per week"]
[null,null,"Distance to nearest rail storage yard (miles)"]
[null,null,"Rail carrier days of service per year"]
[null,null,"Provided a map indicating where service is to the site boundaries."]
[null,null,"Provided signature below that confirms each response within this section is exactly as written."]
[]
[null,null,"Provider Confirmation of Accurate Information (if applicable)"]
[]
[null,null,"I confirm the above information is accurate as of …...........................",null," (INSERT CURRENT DATE and TIME HERE)"]
[]
[]
[null,null,"Insert Rail Provider Signature on Line Below:"]

{"sheet":"Airport Section","index":12,"n_rows":47,"n_cols":5,"rows_kept":47,"cut":false,"hidden":false,"merged":[[6,2,6,4],[7,2,8,2],[7,3,8,3],[9,3,9,4]]}
[]
[null,null,"INSITE'S SITE AND COMMUNITY CLIENT READINESS PROGRAM"]
[null,null,"InSite's Site Selection Data Template to Compile Site Specs"]
[null,null,"Stand-Alone Site and/or Industrial Park Site(s):  Referenced as \"Site\" in Document"]
[null,null,"LEDO Input Data Template"]
[null,null,"© 2022 InSite LLC: Confidential and Proprietary Property of InSite, LLC. The data template will remain in its original condition (formatting, spelling, etc.) as submitted to InSite."]
[null,null,"\"Designed For Currently\" Site Specs/Data Input Template"]
[null,null,"Criteria","Data/Response \nthis Column Only","Comments only in Gray Cells"]
[null,null,null,null,"Blue cells do not require data entry."]
[null,null,"Name of Stand-Alone Site or Industrial Park Submission",{"$f":"'Start Instructions'!D8","v":"Fort Union Industrial Park"}]
[null,null,"Is this Site Submission.....",{"$f":"'Start Instructions'!$D$9","v":"An Industrial Park Site"}]
[null,null,"Largest, contiguous, developable acreage (CDA) of site submission. See \"EX\" worksheet tabs.",{"$f":"'Start Instructions'!$D$10","v":460}]
[null,null,"Submission street/physical address",{"$f":"'Start Instructions'!$D$11","v":"3574 N. Garner Lake Rd"}]
[null,null,"city",{"$f":"'Start Instructions'!$D$12","v":"Gillette"}]
[null,null,"county",{"$f":"'Start Instructions'!$D$13","v":"Campbell"}]
[null,null,"state",{"$f":"'Start Instructions'!$D$14","v":"WY"}]
[null,null,"zip code",{"$f":"'Start Instructions'!$D$15","v":82716}]
[null,null,"GPS Coordinates",{"$f":"'Start Instructions'!$D$16","v":"44.354032988369234, -105.4208611010569"}]
[null,null,"AIRPARK SECTION"]
[null,null,"Is your site(s) part of an airport/airpark","No"]
[null,null,"Name of airport",null,"Northeast Wyoming Regional Airport"]
[null,null,"General Aviation Airport",null,"Yes"]
[null,null,"Commercial Airport",null,"Yes"]
[null,null,"Number of runways (put respective lengths in comments)",null,"RWY 16/34 7501' X 150'  RWY 3/21 5803' X 75'"]
[null,null,"FBO",null,"Flightline LFS"]
[null,null,"Fuel availability",null,"24k gallons JET A 12k gallons 100 LL"]
[null,null,"Number of flights",null,"13 Weekly"]
[null,null,"Number of direct flights",null,"13 Weekly "]
[null,null,"Number of domiciled aircraft",null,53]
[null,null,"Maintenance and repair services available",null,"Yes"]
[null,null,"Number of available hangers",null,"24 County Owned none available at this time "]
[null,null,"Number of hangers with runway access",null,24]
[null,null,"Is the property in the environs?",null,"Yes"]
[null,null,"Conference facilities available",null,"Yes"]
[null,null,"Flight school onsite (if no, put distance to closest one in comments)",null,"Yes"]
[null,null,"List additional amenities"]
[null,null,"Provided map of property (with environs overlay if applicable)"]
[null,null,"Provided signature below that confirms each response within this section is exactly as written."]
[]
[null,null,"Airport Authority Confirmation of Accurate Information (if applicable)"]
[]
[null,null,"I confirm the above information is accurate as of …...........................",null," 01/10/2023 0730"]
[]
[]
[null,null,"Insert Airport Authority Signature on Line Below:"]
[]
[null,null,"Todd Chatfield C.M."]

{"sheet":"Owner LEDO Due Diligence Sect","index":13,"n_rows":70,"n_cols":5,"rows_kept":70,"cut":false,"hidden":false,"merged":[[6,2,6,4],[7,2,8,2],[7,3,8,3],[9,3,9,4]]}
[]
[null,null,"INSITE'S SITE AND COMMUNITY CLIENT READINESS PROGRAM"]
[null,null,"InSite's Site Selection Data Template to Compile Site Specs"]
[null,null,"Stand-Alone Site and/or Industrial Park Site(s):  Referenced as \"Site\" in Document"]
[null,null,"LEDO Input Data Template"]
[null,null,"© 2022 InSite LLC: Confidential and Proprietary Property of InSite, LLC. The data template will remain in its original condition (formatting, spelling, etc.) as submitted to InSite."]
[null,null,"\"Designed For Currently\" Site Specs/Data Input Template"]
[null,null,"Criteria","Data/Response \nthis Column Only","Comments only in Gray Cells"]
[null,null,null,null,"Blue cells do not require data entry."]
[null,null,"Name of Stand-Alone Site or Industrial Park Submission",{"$f":"'Start Instructions'!D8","v":"Fort Union Industrial Park"}]
[null,null,"Is this Site Submission.....",{"$f":"'Start Instructions'!$D$9","v":"An Industrial Park Site"}]
[null,null,"Largest, contiguous, developable acreage (CDA) of site submission. See \"EX\" worksheet tabs.",{"$f":"'Start Instructions'!$D$10","v":460}]
[null,null,"Submission street/physical address",{"$f":"'Start Instructions'!$D$11","v":"3574 N. Garner Lake Rd"}]
[null,null,"city",{"$f":"'Start Instructions'!$D$12","v":"Gillette"}]
[null,null,"county",{"$f":"'Start Instructions'!$D$13","v":"Campbell"}]
[null,null,"state",{"$f":"'Start Instructions'!$D$14","v":"WY"}]
[null,null,"zip code",{"$f":"'Start Instructions'!$D$15","v":82716}]
[null,null,"GPS Coordinates",{"$f":"'Start Instructions'!$D$16","v":"44.354032988369234, -105.4208611010569"}]
[null,null,"Site Due Diligence Questions (Input from Owner and LEDO)."]
[null,null,"Any Due Diligence Dated 10 years or Older, Must Be Updated."]
[null,null,"Do Not Provide any Studies! Provide what is asked for below and per example as applicable."]
[null,null,"Completed Phase I ESA on the site submission","No"]
[null,null,"if yes, date of the Phase I ESA (if cell input does not function correctly, input date into comments)"]
[null,null,"do the results of the Phase I ESA require further action?"]
[null,null,"do you (owner and LEDO) have an electronic copy of the study on file? If no, get one for your files. \nDo not provide full study."]
[null,null,"Link to Content for Engineering Firm Letter.\nAny other format will be rejected."]
[null,null,"provided summary letter from the engineering firm in the identical format shown in the example, that is no more than 10 years old and is no more than one page, stating specifically and exactly that the site is clear; and if not, why and what has to be done next."]
[null,null,"if a Phase I ESA has not been completed, are you willing to pursue this effort?","Yes"]
[]
[null,null,"Completed Phase II ESA on the entire site submission","No"]
[null,null,"if yes, date of the Phase II ESA (if cell input does not function correctly, input date into comments)"]
[null,null,"do you (owner and LEDO) have an electronic copy of the study on file? If no, get one for your files. \nDo not provide full study."]
[null,null,"provided summary letter from the engineering firm in the identical format shown in the example, that is no more than 10 years old and is no more than one page, stating specifically and exactly that the site is clear; and if not, why and what has to be done next."]
[null,null,"if a Phase II ESA has not been completed, are you willing to pursue this effort?","Yes"]
[]
[null,null,"Completed Geotechnical Study on the\nentire site submission","No"]
[null,null,"if yes, date of the Geotechnical Study (if cell input does not function correctly, input date into comments)"]
[null,null,"do you (owner and LEDO) have an electronic copy of the study on file? If no, get one for your files. \nDo not provide full study."]
[null,null,"Link to Content for Engineering Firm Letter.\nAny other format will be rejected."]
[null,null,"provided summary letter from the engineering firm in the identical format shown in the example, that is no more than 10 years old and is no more than one page, stating specifically and exactly that the site is clear; and if not, why and what has to be done next."]
[null,null,"if a Geotechnical Study has not been completed, are you willing to pursue this effort?","Yes"]
[]
[null,null,"Completed Wetlands Delineation Study on \nthe entire site submission","No"]
[null,null,"if yes, date of the Wetland Delineation Study (if cell input does not function correctly, input date into comments)"]
[null,null,"do you (owner and LEDO) have an electronic copy of the study on file? If no, get one for your files. \nDo not provide full study."]
[null,null,"Link to Content for Engineering Firm Letter.\nAny other format will be rejected."]
[null,null,"provided summary letter from the engineering firm in the identical format shown in the example, that is no more than 10 years old and is no more than one page, stating specifically and exactly that the site is clear and if not, why and what has to be done next."]
[null,null,"included wetlands delineation map with park/site boundaries as a separate attachment and with this submission"]
[null,null,"Link to Example Final JD Letter.\nPreliminary JD's are not accepted."]
[null,null,"provided an APPROVED, FINAL (not preliminary) Jurisdictional Determination Letter from the Corps of Engineers dated within the last 10 years as a separate attachment and with this submission."]
[null,null,"if a Wetlands Delineation Study has not been completed, are you willing to pursue this effort?","Yes"]
[]
[null,null,"Completed Cultural Resource Study on the entire\nsite submission (not a literature review) ","No"]
[null,null,"if yes, date of the Cultural Resource Study (if cell input does not function correctly, input date into comments)"]
[null,null,"do you (owner and LEDO) have an electronic copy of the study on file? If no, get one for your files. \nDo not provide full study."]
[null,null,"Link to Content for Engineering Firm Letter.\nAny other format will be rejected."]
[null,null,"provided summary letter from the engineering firm in the identical format shown in the example, that is no more than 10 years old and is no more than one page, stating specifically and exactly that the site is clear and if not, why and what has to be done next."]
[null,null,"included historical site delineation map with park/site boundaries as a separate attachment and with this submission"]
[null,null,"Link to Example SHPO Letter"]
[null,null,"provided a concurrence letter from SHPO - Ohio History Connection (State Historic and Preservation Office) dated within the last 10 years as a separate attachment and with this submission. "]
[null,null,"if a Phase I Cultural Resources Study has not been completed, are you willing to pursue this effort?","Yes"]
[]
[null,null,"Completed Endangered Species Study on the entire site submission","No"]
[null,null,"if yes, date of the Endangered Species Study (if cell input does not function correctly, input date into comments)"]
[null,null,"do you (owner and LEDO) have an electronic copy of the study on file. If no, get one for your files? \nDo not provide full study."]
[null,null,"Link to Content for Engineering Firm Letter.\nAny other format will be rejected."]
[null,null,"provided summary letter from the engineering firm in the identical format shown in the example, that is no more than 10 years old and is no more than one page, stating specifically and exactly that the site is clear and if not, why and what has to be done next.  "]
[null,null,"Link to Example USFWS Letter"]
[null,null,"provided a letter from USFWS (U.S. Fish and Wildlife Services) as a separate attachment and with this submission, confirming no findings or findings and path forward for the site dated within the last 10 years."]
[null,null,"if an Endangered Species Study has not been completed, are you willing to pursue this effort?","Yes"]

{"sheet":"Fort Union Site","index":14,"n_rows":0,"n_cols":0,"rows_kept":0,"cut":false,"hidden":false,"merged":[]}

{"sheet":"\"EX\" Stand-Alone Site CDA","index":15,"n_rows":6,"n_cols":3,"rows_kept":6,"cut":false,"hidden":false,"merged":[]}
[]
[null,null,"INSITE'S SITE AND COMMUNITY CLIENT READINESS PROGRAM"]
[null,null,"InSite's Site Selection Data Template to Compile Site Specs"]
[null,null,"Stand-Alone Site and/or Industrial Park Site(s):  Referenced as \"Site\" in Document"]
[null,null,"LEDO Input Data Template"]
[null,null,"© 2022 InSite LLC: Confidential and Proprietary Property of InSite, LLC. The data template will remain in its original condition (formatting, spelling, etc.) as submitted to InSite."]

{"sheet":"\"EX\" Ind Park Map CDA","index":16,"n_rows":6,"n_cols":3,"rows_kept":6,"cut":false,"hidden":false,"merged":[]}
[]
[null,null,"INSITE'S SITE AND COMMUNITY CLIENT READINESS PROGRAM"]
[null,null,"InSite's Site Selection Data Template to Compile Site Specs"]
[null,null,"Stand-Alone Site and/or Industrial Park Site(s):  Referenced as \"Site\" in Document"]
[null,null,"LEDO Input Data Template"]
[null,null,"© 2022 InSite LLC: Confidential and Proprietary Property of InSite, LLC. The data template will remain in its original condition (formatting, spelling, etc.) as submitted to InSite."]

{"sheet":"InSite Section Subm Checklist","index":17,"n_rows":60,"n_cols":17,"rows_kept":60,"cut":false,"hidden":false,"merged":[[6,2,6,4],[7,2,8,2],[7,3,8,3],[9,3,9,4]]}
[]
[null,null,"INSITE'S SITE AND COMMUNITY CLIENT READINESS PROGRAM"]
[null,null,"InSite's Site Selection Data Template to Compile Site Specs"]
[null,null,"Stand-Alone Site and/or Industrial Park Site(s):  Referenced as \"Site\" in Document"]
[null,null,"LEDO Input Data Template"]
[null,null,"© 2022 InSite LLC: Confidential and Proprietary Property of InSite, LLC. The data template will remain in its original condition (formatting, spelling, etc.) as submitted to InSite."]
[null,null,"\"Designed For Currently\" Site Specs/Data Input Template"]
[null,null,"Criteria","Data/Response \nthis Column Only","Comments only in Gray Cells"]
[null,null,null,null,"Blue cells do not require data entry."]
[null,null,"Name of Stand-Alone Site or Industrial Park Submission",{"$f":"'Start Instructions'!D8","v":"Fort Union Industrial Park"}]
[null,null,"Is this Site Submission.....",{"$f":"'Start Instructions'!$D$9","v":"An Industrial Park Site"}]
[null,null,"Largest, contiguous, developable acreage (CDA) of site submission. See \"EX\" worksheet tabs.",{"$f":"'Start Instructions'!$D$10","v":460}]
[null,null,"Submission street/physical address",{"$f":"'Start Instructions'!$D$11","v":"3574 N. Garner Lake Rd"}]
[null,null,"city",{"$f":"'Start Instructions'!$D$12","v":"Gillette"}]
[null,null,"county",{"$f":"'Start Instructions'!$D$13","v":"Campbell"}]
[null,null,"state",{"$f":"'Start Instructions'!$D$14","v":"WY"}]
[null,null,"zip code",{"$f":"'Start Instructions'!$D$15","v":82716}]
[null,null,"GPS Coordinates",{"$f":"'Start Instructions'!$D$16","v":"44.354032988369234, -105.4208611010569"}]
[null,null,"TO BE USED BY LEDO AS SUBMISSION CHECKLIST"]
[null,null,"INCLUDE STAND-ALONE SITE and/or INDUSTRIAL PARK AND SITE BOUNDARIES and LEGEND ON ALL MAPS"]
[null,null,"Submitted the following with data template: INSITE USE ONLY"]
[null,null,"Simple, stand-alone site layout with maximum, contiguous, developable acreage, and include the maximum square footage of a building footprint on the site's developable acreage.  Or a simple industrial park layout with site(s) shown per maximum, contiguous, developable acreage as site boundaries and lot lines, and include the maximum square footage of a building footprint on each site's developable acreage?"]
[null,null,"FEMA flood plain map. Include site boundaries."]
[null,null,"Ownership signature provided in this template"]
[null,null,"Mineral Rights ownership signature provided in this template"]
[null,null,"One utility map (include site boundaries) showing where water, sewer, electric, natural gas and fiber lines connect to the site boundaries"]
[null,null,"Electric provider signature provided in this template"]
[null,null,"Water provider signature provided in this template"]
[null,null,"Sewer provider signature provided in this template"]
[null,null,"Natural Gas provider signature provided in this template"]
[null,null,"Fiber provider signature provided in this template"]
[null,null,"Rail provider signature provided in this template \n(if applicable)"]
[null,null,"Phase I completed"]
[null,null,"engineer's summary letter exactly per template"]
[null,null,"if no, willingness to complete"]
[null,null,"Phase II completed"]
[null,null,"engineer's summary letter exactly per template"]
[null,null,"Geotechnical study completed"]
[null,null,"engineer's summary letter exactly per template"]
[null,null,"if no, willingness to complete"]
[null,null,"Wetlands Delineation study completed"]
[null,null,"engineer's summary letter exactly per template"]
[null,null,"delineation map"]
[null,null,"final APPROVED JD Letter"]
[null,null,"if no, willingness to complete"]
[null,null,"Phase I Cultural Resources study completed "]
[null,null,"engineer's summary letter exactly per template"]
[null,null,"findings map"]
[null,null,"SHPO Letter",null,null,null,null,null,null,null,null,null,null,null,null,null,"  "]
[null,null,"if no, willingness to complete"]
[null,null,"Endangered Species study completed "]
[null,null,"engineer's summary letter exactly per template"]
[null,null,"USFW Letter"]
[null,null,"if no, willingness to complete"]
[null,null,"Aerial photograph. Label surrounding uses and site/park boundaries."]
[null,null,"USGS topographic map. Include site boundaries."]
[null,null,"Map of local, state highway/interstate infrastructure relative to the site. Include \nsite boundaries. "]
[null,null,"Map of 500-mile radius (in 100-mile increments/rings) from the site to include state highway/interstate infrastructure with \nmajor cities labeled."]
[null,null,"Property survey or plat of site"]
[null,null,"Tax map of submission of site boundaries."]